Cogmind - Beta 15 @@@ ROGUE MODE // 2025.06.24 @ 21:29:46 Player: Jammed Result: Destroyed by S-43 Plague with Heavy Machine Gun Performance ------------- Evolutions (7) 3500 Regions Visited (30) 6000 Robots Destroyed (413) 2065 Value Destroyed (14208) 14208 Prototype IDs (52) 1040 Alien Tech Used (4) 800 Bonus (5989) 5989 TOTAL SCORE: 33602 Bonus ------- High Alert Combat Kills 769 Follower Combat Kills 211 Met Data Miner 300 Met Imprinter 300 Met Zhirov 300 Met Warlord at Base 500 MAIN.C Attacked Warlord 500 Warlord Defense Kills 3894 Friendly Fire -785 Cogmind --------- Core Integrity 0/1300 Matter 295/300 Energy 100/100 System Corruption 28% Temperature Cool (0) Movement Core (50) Location -3/Protoforge Parts ------- > --- POWER (2) -------- (None) > --- PROPULSION (6) --- (None) > --- UTILITY (11) ----- Enhanced Optical Array Experimental Targeting Computer Experimental Armor Integrity Analyzer Advanced Hacking Suite Ghost Barrier > --- WEAPON (2) ------- (None) > --- INVENTORY (5) ---- Advanced Matter Compressor (100) Advanced Weapon Cycler Phase Armor Graphene Brace Peak State ------------ > --- POWER ------------ Vortex Chain Reactor > --- PROPULSION ------- Combat Antigrav System Combat Antigrav System Antigrav Array Antigrav Array > --- UTILITY ---------- Medium Storage Unit Enhanced Optical Array Advanced Signal Interpreter Experimental Targeting Computer Experimental Armor Integrity Analyzer Experimental Cloaking Device Phase Armor Advanced Hacking Suite Advanced Hacking Suite Ghost Barrier > --- WEAPON ----------- Heavy Hardcell Cannon > --- INVENTORY -------- Combat Antigrav System Advanced Matter Compressor Weapon Mount Advanced Kinecellerator Advanced Weapon Cycler Advanced ECM Suite Improved Weapon Shielding Graphene Brace Subatomic Replicator Fusion Bomb Launcher [Rating: 179] Favorites ----------- Power Cooled Ion Engine Engine Cooled Ion Engine Power Core Light Fission Core Reactor Vortex Chain Reactor Propulsion Light Treads Treads Light Treads Leg Aluminum Leg Wheel Compact Wheel Hover Unit Gyrokinetic Inverter Utility Advanced Hacking Suite Device Improved Reaction Control System Storage Medium Storage Unit Processor Enhanced Optical Array Hackware Advanced Hacking Suite Protection Improved Medium Armor Plating Artifact Phase Armor Weapon Heavy Assault Cannon Energy Gun Improved EM Shotgun Energy Cannon Compact Ion Cannon Ballistic Gun Makeshift Shrapnel Gun Ballistic Cannon Heavy Assault Cannon Launcher Grenade Launcher Special Weapon Mining Laser Slashing Weapon Ionic Axe Piercing Weapon Lance Build | -11 -10 -10 -9 -9 -8 -7 -7 -7 -7 -6 -6 -6 -6 -6 -5 -5 -5 -5 -5 -5 -5 -4 -4 -4 -4 -4 -3 -3 -3 -3 ------- Run | Yrd Mat Min Mat Sto Mat Fac Low Low Zio Pro Fac Low Low Dat Pro Fac Was Fac Upp Upp Zhi Pro Fac Upp Upp War Pro Res Qua Frg Slots Evolved 14 | . . . 2 . 2 2 . . . . 2 . . . . 2 . . . . . . 2 . . . . 2 . . Power 1 | . . . . . . . . . . . . . . . . . . . . . . . . . . . . 1 . . Propulsion 4 | . . . 1 . 2 . . . . . . . . . . . . . . . . . . . . . . 1 . . Utility 9 | . . . 1 . . 2 . . . . 2 . . . . 2 . . . . . . 2 . . . . . . . Weapon . | . . . . . . . . . . . . . . . . . . . . . . . . . . . . . . . Parts Attached 216 | 1 11 2 18 27 17 16 1 1 2 2 17 1 2 . . . 4 22 1 3 7 1 12 3 4 15 1 20 5 . Power 22 | . 2 . 3 3 . . . . . . 2 . . . . . . 4 . . 1 . 4 . 1 1 . 1 . . Engine 12 | . 2 . 3 3 . . . . . . . . . . . . . 2 . . . . 2 . . . . . . . Core 7 | . . . . . . . . . . . 2 . . . . . . 2 . . . . 1 . 1 1 . . . . Reactor 3 | . . . . . . . . . . . . . . . . . . . . . 1 . 1 . . . . 1 . . Propulsion 65 | . 1 1 6 6 11 11 1 . 2 1 6 . . . . . 2 5 . . 1 . 3 . . 2 . 4 2 . Treads 22 | . . 1 4 6 11 . . . . . . . . . . . . . . . . . . . . . . . . . Leg 2 | . . . 2 . . . . . . . . . . . . . . . . . . . . . . . . . . . Wheel 1 | . 1 . . . . . . . . . . . . . . . . . . . . . . . . . . . . . Hover 40 | . . . . . . 11 1 . 2 1 6 . . . . . 2 5 . . 1 . 3 . . 2 . 4 2 . Flight . | . . . . . . . . . . . . . . . . . . . . . . . . . . . . . . . Utility 87 | 1 1 . 3 14 2 5 . 1 . . 8 . 1 . . . 1 10 1 2 5 1 4 3 3 9 1 8 3 . Device 47 | 1 . . 1 9 1 . . . . . 4 . 1 . . . 1 6 1 1 3 1 3 1 3 5 . 3 2 . Storage 8 | . 1 . 1 1 . 1 . . . . . . . . . . . . . . . . . 1 . . . 3 . . Processor 8 | . . . . . . 1 . . . . 2 . . . . . . . . 1 . . 1 1 . 1 . 1 . . Hackware 9 | . . . . . . 2 . . . . . . . . . . . 4 . . 1 . . . . 1 1 . . . Protection 14 | . . . 1 4 1 1 . 1 . . 2 . . . . . . . . . 1 . . . . 2 . 1 . . Artifact 1 | . . . . . . . . . . . . . . . . . . . . . . . . . . . . . 1 . Weapon 42 | . 7 1 6 4 4 . . . . 1 1 1 1 . . . 1 3 . 1 . . 1 . . 3 . 7 . . Energy Gun 3 | . 3 . . . . . . . . . . . . . . . . . . . . . . . . . . . . . Energy Cannon 1 | . . . . 1 . . . . . . . . . . . . . . . . . . . . . . . . . . Ballistic Gun 2 | . . . . . . . . . . . . . 1 . . . . . . . . . . . . . . 1 . . Ballistic Cannon 20 | . 1 . 5 2 3 . . . . . 1 . . . . . . 2 . 1 . . 1 . . 3 . 1 . . Launcher 11 | . 2 1 1 1 1 . . . . . . 1 . . . . 1 1 . . . . . . . . . 2 . . Special Weapon 1 | . 1 . . . . . . . . . . . . . . . . . . . . . . . . . . . . . Impact Weapon . | . . . . . . . . . . . . . . . . . . . . . . . . . . . . . . . Slashing Weapon 1 | . . . . . . . . . . . . . . . . . . . . . . . . . . . . 1 . . Piercing Weapon 3 | . . . . . . . . . . 1 . . . . . . . . . . . . . . . . . 2 . . Special Melee Weapon . | . . . . . . . . . . . . . . . . . . . . . . . . . . . . . . . Unidentified Prototypes 36 | . 1 . 1 2 . . . . . . 1 . . . . . . 4 . . 4 . 1 . . 9 . 10 3 . Corrupted Parts 2 | . . 1 . . . . . . . . . . . . . . . . . . . . . . . 1 . . . . System Corruption 5 | . . 2 . . . . . . . . . . . . . . . . . . . . . . . 3 . . . . Parts Lost 49 | . 1 . 7 2 2 . 1 2 . . 2 . . . . . . 4 . 1 . 1 10 . . 2 . . 7 7 Power 9 | . 1 . 1 1 . . . . . . 1 . . . . . . 1 . . . . 3 . . . . . 1 . Propulsion 14 | . . . 3 . 1 . 1 1 . . . . . . . . . 1 . . . . 2 . . . . . 2 3 Utility 19 | . . . 2 1 . . . . . . . . . . . . . 2 . 1 . 1 4 . . 1 . . 3 4 Weapon 7 | . . . 1 . 1 . . 1 . . 1 . . . . . . . . . . . 1 . . 1 . . 1 . Highest Loss Streak 6 | . 1 . 4 1 1 . 1 2 . . 2 . . . . . . 3 . 1 . 1 3 . . 1 . . 6 6 To Critical Strikes . | . . . . . . . . . . . . . . . . . . . . . . . . . . . . . . . Average Backups 12 | 6 11 14 14 15 24 10 8 8 10 9 9 9 10 10 10 10 10 9 9 8 9 9 8 4 5 7 9 9 9 6 Power . | 1 1 . . . . . . . . . . . . . . . . . . . . . . . . . 1 . . . Propulsion 2 | 4 4 6 4 4 6 2 1 1 1 1 1 1 1 1 1 1 1 1 2 2 2 2 1 1 1 1 1 . . . Utility 6 | . 1 2 5 7 13 6 6 6 7 7 6 7 7 7 7 7 7 6 5 4 5 4 4 2 3 5 6 6 6 5 Weapon 2 | 1 4 5 4 3 3 2 1 1 1 1 1 1 2 2 2 2 2 2 2 2 1 1 1 1 1 1 1 1 1 . Tool/Special . | . . . . . . . . . . . . . . . . . . . . . . . . . . . . . . . Unused Backups 51 | 6 5 . 5 2 12 4 . 1 2 1 4 . . . . . . 1 . 2 1 . 3 . . . . . . 2 Power 3 | 1 . . . . . 1 . . . . . . . . . . . . . 1 . . . . . . . . . . Propulsion 18 | 2 1 . 1 1 10 . . . . . 1 . . . . . . 1 . 1 . . . . . . . . . . Utility 23 | 1 3 . 1 1 2 3 . 1 2 1 3 . . . . . . . . . 1 . 3 . . . . . . 1 Weapon 6 | 2 1 . 3 . . . . . . . . . . . . . . . . . . . . . . . . . . . Tool/Special 1 | . . . . . . . . . . . . . . . . . . . . . . . . . . . . . . 1 Average Slot Usage (%) 89 | . 99 100 94 99 97 89 92 91 91 92 80 79 80 75 80 70 75 82 88 84 80 88 84 91 92 93 94 85 78 47 Engine 4 | . 13 14 10 10 9 6 7 7 7 7 . . . . . . . 2 . . . . . . . . . . . . Core 1 | . . . . . . . . . . . 5 6 6 6 6 5 5 2 5 5 5 5 1 5 5 5 5 . . . Treads 9 | . . . 25 33 44 1 . . . . . . . . . . . . . . . . . . . . . . . . Leg 1 | . 17 14 4 . . . . . . . . . . . . . . . . . . . . . . . . . . . Hover 16 | . . . . . . 36 38 37 38 38 21 20 20 20 20 17 17 18 23 23 23 23 23 26 26 25 26 22 18 10 Device 9 | . 14 14 13 9 9 . . . . . 8 6 6 6 6 5 10 9 11 7 5 5 15 15 14 12 10 13 11 7 Storage 7 | . 14 14 13 11 9 7 7 7 7 7 6 6 6 6 6 5 5 5 5 5 5 5 4 . 5 5 5 4 4 1 Processor 7 | . . . . . . 6 7 7 7 7 10 13 13 13 13 11 11 11 11 11 11 11 10 17 15 17 15 16 19 17 Hackware 10 | . . . . . . 14 15 15 15 15 13 13 13 13 13 11 11 16 17 17 18 23 21 21 21 21 21 16 13 9 Protection 4 | . . . 2 12 9 6 7 6 7 7 6 6 6 6 6 5 5 5 5 5 5 5 . . . . 4 . 1 . Energy Gun 1 | . 21 27 5 . . . . . . . . . . . . . . . . . . . . . . . . . . . Energy Cannon 1 | . . . . 3 7 . . . . . . . . . . . . . . . . . . . . . . . . . Ballistic Cannon 6 | . 2 . 15 17 8 6 6 6 6 6 4 5 6 2 6 5 4 4 5 5 . 4 3 5 4 5 4 1 3 . Peak Build Rating 179 | 7 12 12 16 21 34 42 43 43 44 43 65 65 65 65 65 65 81 98 99 100 101 104 113 108 105 127 127 162 179 88 Average Rating 66 | 6 8 11 13 16 31 38 42 42 42 42 59 64 64 60 65 65 77 88 98 94 86 101 100 104 100 117 125 153 157 76 On Entrance 67 | 6 7 12 12 14 21 29 42 43 43 42 43 65 65 65 65 65 65 78 98 98 93 100 96 103 103 105 127 125 161 88 Naked Turns . | . . . . . . . . . . . . . . . . . . . . . . . . . . . . . . . Heaviest Build 108 | 13 30 30 49 102 106 106 37 37 37 37 40 38 38 38 38 38 39 57 51 50 49 45 58 41 50 69 65 87 108 14 Greatest Support 103 | 20 20 16 60 60 103 80 43 43 43 42 52 52 52 52 52 52 58 62 62 62 62 62 62 58 58 63 63 83 84 48 Greatest Overweight (x) 2 | . 1 1 1 1 1 2 . . . . . . . . . . 1 1 . . . . . . . 1 1 1 1 . Average Overweight (x) . | . . 1 . . . . . . . . . . . . . . . . . . . . . . . . . . . . Largest Inventory Capacity 25 | 8 15 15 15 25 25 25 10 10 10 10 10 10 10 10 10 10 10 10 10 10 10 10 10 10 10 10 10 10 10 10 Average Capacity 12 | 8 13 15 15 16 25 10 10 10 10 10 10 10 10 10 10 10 10 10 10 10 10 10 9 5 10 10 10 10 10 7 Most Carried 25 | 7 15 15 15 18 25 25 10 10 10 10 10 10 10 10 10 10 10 10 9 10 10 10 10 5 10 10 10 10 10 9 Average Carried 12 | 6 11 14 14 15 24 10 9 8 9 9 9 9 10 10 10 10 9 9 8 8 9 9 9 4 7 8 9 9 9 6 Final Capacity 25 | 8 15 15 15 25 25 10 10 10 10 10 10 10 10 10 10 10 10 10 10 10 10 10 5 10 10 10 10 10 10 5 Final Carried 25 | 7 13 15 15 18 25 10 9 10 10 10 10 10 10 10 10 10 10 9 8 9 10 10 4 5 10 10 10 10 9 5 Class Distribution -------------------- 46% | Hacker-Mutant 30% | Mutant 7% | Hacker-Scout 6% | Scavenger-Mutant 3% | Wizard-Mutant Dominant Class ---------------- Mutant | -10/Materials Mutant | -10/Mines Mutant | -9/Materials Mutant | -9/Storage Mutant | -8/Materials Hacker-Mutant | -7/Factory Hacker-Mutant | -7/Lower Caves Hacker-Mutant | -7/Lower Caves Hacker-Mutant | -7/Zion Hacker-Mutant | -6/Proximity Caves Hacker-Mutant | -6/Factory Hacker-Mutant | -6/Lower Caves Hacker-Mutant | -6/Lower Caves Hacker-Mutant | -6/Data Miner Hacker-Mutant | -5/Proximity Caves Hacker-Mutant | -5/Factory Hacker-Mutant | -5/Waste Hacker-Mutant | -5/Factory Hacker-Mutant | -5/Upper Caves Hacker-Mutant | -5/Upper Caves Hacker-Mutant | -5/Zhirov Hacker-Mutant | -4/Proximity Caves Hacker-Mutant | -4/Factory Hacker-Mutant | -4/Upper Caves Hacker-Scout | -4/Upper Caves Wizard-Mutant | -4/Warlord Wizard-Scout | -3/Proximity Caves Hacker-Scout | -3/Research Hacker-Scout | -3/Quarantine Hacker-Mutant | -3/Protoforge Resources | -11 -10 -10 -9 -9 -8 -7 -7 -7 -7 -6 -6 -6 -6 -6 -5 -5 -5 -5 -5 -5 -5 -4 -4 -4 -4 -4 -3 -3 -3 -3 ----------- Run | Yrd Mat Min Mat Sto Mat Fac Low Low Zio Pro Fac Low Low Dat Pro Fac Was Fac Upp Upp Zhi Pro Fac Upp Upp War Pro Res Qua Frg Matter Collected 15816 | 210 609 256 667 1196 762 601 341 274 18 192 1037 80 145 . 44 . 98 1432 144 656 147 330 1517 164 287 1759 156 1467 1206 21 Remotely . | . . . . . . . . . . . . . . . . . . . . . . . . . . . . . . . Salvage Created 14663 | 45 713 199 852 1448 1801 408 158 219 . 342 1359 21 69 . . . 291 1626 129 283 337 . 1169 36 160 1177 98 1073 650 . Parts 672 | 4 32 12 48 71 102 22 5 11 . 19 72 3 . . . . 1 72 11 2 4 . 65 . 4 31 8 45 28 . Haulers Intercepted 21 | . 2 . 4 4 2 . . . . . 1 . . . . . . 2 . . . . . . . . . 4 2 . Recyclers Shooed 22 | 2 3 . 1 3 3 . . . . . 3 . . . . . . 3 . . . . 1 . . . . 2 1 . Parts Field Recycled . | . . . . . . . . . . . . . . . . . . . . . . . . . . . . . . . Retrieved Matter . | . . . . . . . . . . . . . . . . . . . . . . . . . . . . . . . Parts Self-Destructed 58 | . . . . . . . 11 7 . 21 . 2 . . . . . . 9 2 1 . . . 3 . 2 . . . Prevented . | . . . . . . . . . . . . . . . . . . . . . . . . . . . . . . . Kills | -11 -10 -10 -9 -9 -8 -7 -7 -7 -7 -6 -6 -6 -6 -6 -5 -5 -5 -5 -5 -5 -5 -4 -4 -4 -4 -4 -3 -3 -3 -3 ------- Run | Yrd Mat Min Mat Sto Mat Fac Low Low Zio Pro Fac Low Low Dat Pro Fac Was Fac Upp Upp Zhi Pro Fac Upp Upp War Pro Res Qua Frg Combat Hostiles Destroyed 280 | . 12 7 21 34 47 8 4 8 . 10 17 5 1 . . . 1 15 6 7 . . 26 1 1 28 5 8 8 . Melee 5 | . . . . . . . . . . 1 2 . . . . . . . . . . . 1 . . . . 1 . . Guns 9 | . 4 2 3 . . . . . . . . . . . . . . . . . . . . . . . . . . . Cannons 166 | . 2 . 11 29 28 4 1 2 . 7 8 1 1 . . . 1 14 4 7 . . 6 1 1 27 . 3 8 . AOE 96 | . 6 5 7 5 16 4 3 6 . 2 7 4 . . . . . 1 2 . . . 19 . . . 5 4 . . Classes Destroyed 28 | 1 6 1 2 3 4 . 1 1 . . . 1 . . . . 1 . . . . . . . 1 6 . . . . Worker 26 | . 1 . 1 1 3 . . . . . 3 . . . . . . 6 . . . . 6 . . . . 4 1 . Builder 8 | . . . 3 . 2 . . . . . . . . . . . . 1 . . . . 1 . . . . 1 . . Tunneler 4 | 2 . . . . . . . . . . . . . . . . . . . . . . . . . . . 2 . . Hauler 21 | . 2 . 4 4 2 . . . . . 1 . . . . . . 2 . . . . . . . . . 4 2 . Recycler 30 | . 2 . 1 3 1 2 . . . . 6 . . . . . . 6 . . . . 5 . . . . 3 1 . Minesweeper 1 | . . . . . . . . . . . . . . . . . . . . . . . . . 1 . . . . . Operator 6 | . . 1 1 1 . . . . . . 2 . . . . . . . . . . . . . . . . 1 . . Drone 3 | . . . . 3 . . . . . . . . . . . . . . . . . . . . . . . . . . Watcher 33 | . 3 . 5 2 5 2 . . . . 3 . . . . . . 6 . . . . 3 . . . . 2 2 . Swarmer 94 | . 3 5 6 3 16 4 3 2 . 4 9 4 . . . . . . 4 . . . 20 . . 1 5 5 . . Saboteur 1 | . . . . . . . . . . . . . . . . . . . . . . . . . . 1 . . . . Grunt 80 | . 9 2 6 18 16 . . 4 . 3 2 . 1 . . . . 3 2 4 . . . . . 10 . . . . Brawler 7 | . . . . . 2 . . . . 1 . . . . . . . 1 . 1 . . . . . 2 . . . . Duelist 3 | . . . . 1 . . . . . 1 . . . . . . . . . 1 . . . . . . . . . . Protector 4 | . . . . 1 1 . . . . . . . . . . . . . . . . . . . . 2 . . . . Sentry 39 | . . . 9 11 8 2 . 1 . . 2 . . . . . . 3 . 1 . . . . 1 . . 1 . . Demolisher 2 | . . . . . . . . . . . . . . . . . . . . . . . . . . 2 . . . . Specialist 2 | . . . . . 2 . . . . . . . . . . . . . . . . . . . . . . . . . Programmer 42 | . . . . . 1 2 . 1 . 1 4 . . . . . . 8 . . . . 6 1 . 8 . 2 8 . Heavy 1 | . . . . . 1 . . . . . . . . . . . . . . . . . . . . . . . . . Behemoth 1 | . . . . . . . . . . . . . . . . . . . . . . . . . . 1 . . . . Compactor 1 | . . . . . . . . . . . . . . . . . 1 . . . . . . . . . . . . . Striker 1 | . . . . . . . . . . . . . . . . . . . . . . . . . . 1 . . . . Executioner 1 | . . . . . . . . . . . . . . . . . . . . . . . . . . 1 . . . . Decomposer 3 | . . . . . . . . . . . . . . . . . . . . . . . . . 3 . . . . . Packrat 3 | . . . . . . . 2 . . . . . 1 . . . . . . . . . . . . . . . . . Samaritan 3 | . . . . . . . . 1 . . . . . . . . . . . . . . . . 2 . . . . . Thief 1 | . . . . . . . . . . . . 1 . . . . . . . . . . . . . . . . . . Butcher 2 | . . . . . . . . . . . . . . . . . . . . . . . . . . 2 . . . . Mutant 1 | . . . . . . . 1 . . . . . . . . . . . . . . . . . . . . . . . Knight 1 | . . . . . . . . . . . . . . . . . . . . . . . . . . 1 . . . . Best Kill Streak 13 | 1 6 3 13 6 6 4 3 4 . 3 3 5 1 . . . 1 3 4 1 . . 10 1 1 7 5 5 3 . Combat Bots Only 8 | . 5 3 7 4 5 4 3 4 . 3 3 5 1 . . . 1 3 4 1 . . 8 1 1 7 5 5 3 . Max Kills in Single Turn 5 | 1 2 2 2 2 4 2 2 2 . 2 3 3 1 . . . 1 2 2 1 . . 5 1 1 1 3 2 1 . Gunslinging . | . . . . . . . . . . . . . . . . . . . . . . . . . . . . . . . Exploded 5 | . 2 2 2 1 3 2 2 2 . 2 3 3 . . . . . 1 2 . . . 5 . . . 3 2 . . Melee 1 | . . . . . . . . . . 1 1 . . . . . . . . . . . 1 . . . . 1 . . Uniques/NPCs Destroyed . | . . . . . . . . . . . . . . . . . . . . . . . . . . . . . . . Combat | -11 -10 -10 -9 -9 -8 -7 -7 -7 -7 -6 -6 -6 -6 -6 -5 -5 -5 -5 -5 -5 -5 -4 -4 -4 -4 -4 -3 -3 -3 -3 -------- Run | Yrd Mat Min Mat Sto Mat Fac Low Low Zio Pro Fac Low Low Dat Pro Fac Was Fac Upp Upp Zhi Pro Fac Upp Upp War Pro Res Qua Frg Hostile Shots Fired 1361 | . 38 14 106 102 139 54 14 51 . 7 120 13 5 . 1 . . 74 19 4 . 12 206 4 . 59 3 31 192 93 Missed 553 | . 16 3 32 27 38 27 5 31 . 3 67 9 4 . 1 . . 35 7 3 . 3 80 1 . 26 1 15 74 45 Hits 808 | . 22 11 74 75 101 27 9 20 . 4 53 4 1 . . . . 39 12 1 . 9 126 3 . 33 2 16 118 48 Melee 2 | . . . . . 2 . . . . . . . . . . . . . . . . . . . . . . . . . Projectile 806 | . 22 11 74 75 99 27 9 20 . 4 53 4 1 . . . . 39 12 1 . 9 126 3 . 33 2 16 118 48 AOE 2 | . . . . . . . . . . . . . . . . . . . . . . . . . . 2 . . . . Critical Strikes 35 | . . . 2 2 7 1 . . . . 1 . . . . . . 2 . . . 1 1 . . 5 . . 9 4 Part Disruptions 4 | . . . . . . . . . . . 1 . . . . . . . . . . . . . . . . . 3 . Damage Taken 15291 | . 374 133 1143 1088 1757 356 251 368 . 60 862 103 19 . . . . 1188 198 28 . 204 1934 61 . 908 42 519 2514 1181 Core 2880 | . 57 15 168 47 149 78 29 85 . 30 150 38 . . . . . 197 . . . 22 355 19 . 129 . 135 570 607 Absorbed by Shields 47 | . . . 47 . . . . . . . . . . . . . . . . . . . . . . . . . . . Redirected to Shielding 105 | . . . . . . . . 78 . . . . . . . . . . . . . . . . . . 27 . . . Regen/Repaired (Parts) 1515 | . . . . 110 . 284 . . . . 368 . . . . . . . . . . . 562 . . 191 . . . . Core Remaining (%) 70 | 100 . 71 . 46 72 . . . . 68 . . . . 77 . . . . . . 78 . . . . 48 . . . Volleys Fired 1149 | 8 59 8 76 107 104 42 14 21 1 15 89 3 5 . . . 4 134 10 56 . 33 83 6 14 113 8 55 81 . Largest 2 | 2 2 2 2 2 2 1 1 1 1 1 1 1 1 . . . 1 1 1 1 . 1 1 1 1 1 1 1 1 . Hottest 127 | 80 100 90 100 123 127 50 50 50 50 50 50 50 50 . . . 50 65 65 65 . 65 65 65 65 76 76 76 68 . Shots Fired 1395 | 16 90 13 137 186 163 42 14 21 1 15 90 4 6 1 . . 4 135 10 56 . 33 83 6 14 112 8 54 81 . Gun 132 | 16 73 11 32 . . . . . . . . . . . . . . . . . . . . . . . . . . . Cannon 1173 | . 5 . 93 172 147 36 11 14 1 14 87 2 6 1 . . 4 135 9 56 . 33 76 6 14 112 6 52 81 . Launcher 81 | . 11 2 11 7 16 6 3 7 . 1 3 2 . . . . . . 1 . . . 7 . . . 2 2 . . Special 9 | . 1 . 1 7 . . . . . . . . . . . . . . . . . . . . . . . . . . Kinetic 1072 | . 5 . 93 157 61 36 11 14 1 14 87 2 6 1 . . 4 135 9 56 . 33 76 6 14 112 6 52 81 . Thermal 110 | . 1 . 1 22 86 . . . . . . . . . . . . . . . . . . . . . . . . . Explosive 77 | . 11 2 7 7 16 6 3 7 . 1 3 2 . . . . . . 1 . . . 7 . . . 2 2 . . Electromagnetic 136 | 16 73 11 36 . . . . . . . . . . . . . . . . . . . . . . . . . . . Robot Hit Streak 17 | 6 15 11 17 17 14 6 5 3 . 4 8 5 2 . . . 5 11 5 5 . . 15 7 13 12 8 9 15 . Robot Miss Streak 9 | 3 4 4 5 5 4 3 1 4 . 3 3 . 2 . . . . 4 3 3 . 1 3 . 1 9 . 3 3 . Penetration Max 1 | . . . . . . . . . . . 1 . . . . . . 1 . . . . . . . 1 . . . . Secondary Targets 1 | . . 1 . . . . . . . . . . . . . . . . . . . . . . . . . . . . Max Gunslinging Chain 1 | . . 1 . . . . . . . . . . . . . . . . . . . . . . . . . . . . Shots Hit Robots 750 | 9 46 9 95 110 97 17 7 10 . 10 34 3 3 . . . 4 56 6 22 5 . 44 2 10 78 2 38 33 . Core Hits 474 | 3 28 10 52 55 79 12 7 15 . 9 29 5 1 . . . 1 36 5 7 3 . 44 . 5 31 6 21 10 . Critical Kills 3 | . . . . . 3 . . . . . . . . . . . . . . . . . . . . . . . . . Critical Parts Destroyed . | . . . . . . . . . . . . . . . . . . . . . . . . . . . . . . . Critical Strikes 72 | 1 1 . 3 3 5 2 . 1 . 2 10 . . . . . . 10 1 4 . . 8 1 2 11 . 3 4 . Meltdown 3 | . . . . . 3 . . . . . . . . . . . . . . . . . . . . . . . . . Blast 65 | . . . 3 3 2 2 . 1 . 2 10 . . . . . . 10 1 4 . . 8 1 2 11 . 1 4 . Corrupt 2 | 1 1 . . . . . . . . . . . . . . . . . . . . . . . . . . . . . Impale 2 | . . . . . . . . . . . . . . . . . . . . . . . . . . . . 2 . . Melee Attacks 84 | . . . . . . . . . . 1 14 . . . . . . . . . 5 . 14 . . . . 50 . . Impact . | . . . . . . . . . . . . . . . . . . . . . . . . . . . . . . . Slashing . | . . . . . . . . . . . . . . . . . . . . . . . . . . . . . . . Piercing 84 | . . . . . . . . . . 1 14 . . . . . . . . . 5 . 14 . . . . 50 . . Sneak Attacks 11 | . . . . . . . . . . . . . . . . . . . . . . . 1 . . . . 10 . . Combat Hostiles . | . . . . . . . . . . . . . . . . . . . . . . . . . . . . . . . Follow-up Attacks 3 | . . . . . . . . . . . . . . . . . . . . . . . . . . . . 3 . . Damage Inflicted 48021 | 113 1380 435 2836 3327 4338 1360 719 1017 . 686 3485 528 225 . . . 211 4308 652 1538 340 42 4883 196 773 7230 449 3420 3519 11 Guns 1328 | 113 615 120 480 . . . . . . . . . . . . . . . . . . . . . . . . . . . Cannons 33911 | . 88 . 1502 2607 2685 999 430 583 . 499 2008 59 225 . . . 211 4022 359 1538 . . 2887 196 773 7230 . 1491 3519 . Explosions 10921 | . 677 315 854 717 1653 360 289 434 . 147 1365 469 . . . . . 286 293 . . . 1805 . . . 449 808 . . Melee 1800 | . . . . . . . . . . 40 108 . . . . . . . . . 340 . 191 . . . . 1121 . . Ramming 61 | . . . . 3 . 1 . . . . 4 . . . . . . . . . . 42 . . . . . . . 11 Kinetic 31913 | . 88 . 1502 2280 1014 999 430 583 . 499 2008 59 225 . . . 211 4022 359 1538 . . 2887 196 773 7230 . 1491 3519 . Thermal 3045 | . 67 130 80 327 1671 . . . . . 770 . . . . . . . . . . . . . . . . . . . Explosive 9681 | . 610 185 717 717 1653 360 289 434 . 147 484 469 . . . . . 261 293 . . . 1805 . . . 449 808 . . Electromagnetic 1521 | 113 615 120 537 . . . . . . . 111 . . . . . . 25 . . . . . . . . . . . . Impact . | . . . . . . . . . . . . . . . . . . . . . . . . . . . . . . . Slashing . | . . . . . . . . . . . . . . . . . . . . . . . . . . . . . . . Piercing 1800 | . . . . . . . . . . 40 108 . . . . . . . . . 340 . 191 . . . . 1121 . . Highest Corruption 28 | . . 2 1 2 1 1 1 3 3 . 14 14 14 14 14 . . 6 . . . . 2 3 3 4 4 3 20 28 Average Corruption 4 | . . 2 1 1 1 1 1 1 3 . 13 14 14 14 14 . . 3 . . . . 1 2 2 1 4 2 7 23 Corruption Purged 9 | . . . . . . . . . . . . . . . . . . 6 . . . . . . 3 . . . . . Corruption Blocked . | . . . . . . . . . . . . . . . . . . . . . . . . . . . . . . . Effects 314 | . . . 8 25 8 8 2 4 1 . 57 13 11 2 14 . . 28 . . . . 14 4 18 7 14 25 41 10 Message Errors 67 | . . . 4 4 1 . . . . . 18 1 4 . . . . 9 . . . . 2 . 7 . 3 8 4 2 Matter Fused 73 | . . . 1 5 1 6 . . . . 10 5 2 . 4 . . 4 . . . . 2 3 3 3 9 5 8 2 Heat Flow Errors 34 | . . . . 4 2 1 1 2 1 . 4 2 . . 3 . . . . . . . 2 . . 1 . 3 8 . Energy Discharges 38 | . . . 2 5 . . . . . . 6 1 1 . 4 . . 2 . . . . 2 . 3 1 1 3 6 1 Parts Rejected 4 | . . . . 1 . . . . . . . . . . . . . . . . . . . . . . . . 3 . Parts Fused 4 | . . . . . . . . . . . 2 1 1 . . . . . . . . . . . . . . . . . Data Loss (minor) 33 | . . . . 1 1 . 1 . . . 2 1 2 1 2 . . 10 . . . . 3 1 1 1 1 1 3 1 Data Loss (major) 20 | . . . . 2 1 1 . 1 . . 7 . . . 1 . . . . . . . 2 . 1 . . 2 2 . Misfires 13 | . . . 1 1 1 . . . . . 2 1 1 1 . . . 2 . . . . . . 1 . . . 2 . Alerts 9 | . . . . 1 1 . . 1 . . . 1 . . . . . . . . . . 1 . 1 . . 2 1 . Misdirections 11 | . . . . . . . . . . . 5 . . . . . . . . . . . . . . . . . 2 4 Weapon Failures 8 | . . . . 1 . . . . . . 1 . . . . . . 1 . . . . . . 1 1 . 1 2 . Overload Shots . | . . . . . . . . . . . . . . . . . . . . . . . . . . . . . . . Overflow Damage 4937 | . 10 25 27 42 126 158 155 51 . 20 395 63 53 . . . . 421 49 112 122 . 491 67 209 674 . 703 964 . Projectiles 4044 | . . . 7 30 38 148 137 47 . 20 212 . 53 . . . . 385 49 112 . . 478 67 209 674 . 414 964 . Explosions 508 | . 10 25 20 12 88 10 18 4 . . 152 63 . . . . . 36 . . . . 13 . . . . 57 . . Melee 385 | . . . . . . . . . . . 31 . . . . . . . . . 122 . . . . . . 232 . . Knockbacks 109 | . 2 . 7 9 7 7 2 2 . . 9 . 1 . . . . 8 1 2 . . 16 1 1 17 . 2 15 . Impact . | . . . . . . . . . . . . . . . . . . . . . . . . . . . . . . . Kinetic 104 | . 2 . 7 9 7 6 2 2 . . 8 . 1 . . . . 8 1 2 . . 15 1 1 17 . 2 13 . Secondary 5 | . . . . . . 1 . . . . 1 . . . . . . . . . . . 1 . . . . . 2 . Self-Inflicted Damage 985 | . 115 31 179 . 48 23 121 88 . . 152 . . . . . . 109 . . . 21 93 . . . . . . 5 Shots 31 | . 4 1 9 . 3 1 3 2 . . 4 . . . . . . 2 . . . . 2 . . . . . . . Rammed 7 | . . . . 1 . 1 . . . . 1 . . . . . . . . . . 1 . . . . . . . 3 Targets Rammed 7 | . . . . 1 . 1 . . . . 1 . . . . . . . . . . 1 . . . . . . . 3 Kicked . | . . . . . . . . . . . . . . . . . . . . . . . . . . . . . . . Crushed . | . . . . . . . . . . . . . . . . . . . . . . . . . . . . . . . Highest Temperature 464 | 108 182 102 182 357 204 212 224 239 135 4 227 200 25 8 242 . 7 464 229 198 . 200 295 316 28 305 110 309 267 . Average Temperature 67 | 44 43 40 47 55 43 24 54 38 64 1 30 77 9 8 91 . 3 56 75 57 . 96 103 101 9 81 54 143 106 . Received Heat Transfer 2130 | . 120 . 384 456 405 69 . 72 . 9 69 . 9 . . . . 90 45 . . 9 105 . . 84 . 63 33 108 Effects 22 | . . . . 2 . . . . . . 2 . . . . . . 5 . . . 3 9 . . . . 1 . . Energy Bleed 6 | . . . . 1 . . . . . . . . . . . . . 2 . . . . 2 . . . . 1 . . Interference 13 | . . . . 1 . . . . . . 2 . . . . . . . . . . 3 7 . . . . . . . Damage (major) 3 | . . . . . . . . . . . . . . . . . . 3 . . . . . . . . . . . . Siege Activations . | . . . . . . . . . . . . . . . . . . . . . . . . . . . . . . . Martial Activations . | . . . . . . . . . . . . . . . . . . . . . . . . . . . . . . . Shielding Activations . | . . . . . . . . . . . . . . . . . . . . . . . . . . . . . . . Robots Disrupted 1 | . . . . . . . . . . . . . . . . . . 1 . . . . . . . . . . . . Combat Hostiles . | . . . . . . . . . . . . . . . . . . . . . . . . . . . . . . . Robots Corrupted 3 | . 2 . 1 . . . . . . . . . . . . . . . . . . . . . . . . . . . Combat Hostiles . | . . . . . . . . . . . . . . . . . . . . . . . . . . . . . . . Parts Fried 12 | . 7 . 4 . . . . . . . . . . . . . . . . . . . . . . 1 . . . . Impact Corruptions 2 | . . . . . . . . . . . . . . . . . . . . . . . . . . . . . 2 . Robots Melted 3 | . . . . . 3 . . . . . . . . . . . . . . . . . . . . . . . . . Combat Hostiles 3 | . . . . . 3 . . . . . . . . . . . . . . . . . . . . . . . . . Parts Melted 9 | . . . . . 8 . . . . . . . . . . . . . . . . . . . . 1 . . . . Heat Transferred 3368 | . 50 150 100 398 2220 . . . . . 450 . . . . . . . . . . . . . . . . . . . Parts Sabotaged . | . . . . . . . . . . . . . . . . . . . . . . . . . . . . . . . Parts Stolen . | . . . . . . . . . . . . . . . . . . . . . . . . . . . . . . . Parts Stripped . | . . . . . . . . . . . . . . . . . . . . . . . . . . . . . . . Power Chain Reactions 7 | . 2 2 2 . . . . . . . 1 . . . . . . . . . . . . . . . . . . . Alert | -11 -10 -10 -9 -9 -8 -7 -7 -7 -7 -6 -6 -6 -6 -6 -5 -5 -5 -5 -5 -5 -5 -4 -4 -4 -4 -4 -3 -3 -3 -3 ------- Run | Yrd Mat Min Mat Sto Mat Fac Low Low Zio Pro Fac Low Low Dat Pro Fac Was Fac Upp Upp Zhi Pro Fac Upp Upp War Pro Res Qua Frg Maximum Alert Level 3 | . . . 1 2 2 1 . . . . 3 . . . . . . 2 . . . . 3 . . . . 1 . . Low Security (%) 50 | 100 100 100 84 36 16 58 . . . . 21 . . . . 100 100 37 . . . . . . . . . 94 100 100 Level 1 26 | . . . 15 27 65 41 . . . . 17 . . . . . . 18 . . . . 37 . . . . 5 . . Level 2 17 | . . . . 35 17 . . . . . 20 . . . . . . 43 . . . . 39 . . . . . . . Level 3 5 | . . . . . . . . . . . 40 . . . . . . . . . . . 22 . . . . . . . Level 4 . | . . . . . . . . . . . . . . . . . . . . . . . . . . . . . . . Level 5 . | . . . . . . . . . . . . . . . . . . . . . . . . . . . . . . . High Security . | . . . . . . . . . . . . . . . . . . . . . . . . . . . . . . . Max Security . | . . . . . . . . . . . . . . . . . . . . . . . . . . . . . . . Peak Influence 1058 | 5 174 146 244 607 682 368 . . . . 1012 . . . . . . 562 . . . . 1058 . . . . 219 154 108 Initial 450 | . . 40 . 94 172 296 . . . . 51 . . . . . . . . . . . 450 . . . . . 120 83 Average 260 | 1 82 50 139 296 319 206 . . . . 518 . . . . . . 285 . . . . 518 . . . . 73 72 63 Influence Increases 13793 | 10 543 292 793 1224 1496 574 90 270 . 377 1757 90 80 . 45 . . 1473 130 345 10 60 2043 30 25 695 110 617 539 75 Destroy 0b10 Robot/C 5680 | . 240 200 420 720 920 160 80 160 . 260 340 80 20 . . . . 300 120 140 . . 520 20 20 540 100 160 160 . Destroy 0b10 Robot/NC 680 | 10 40 10 75 65 70 20 . . . . 75 . . . . . . 105 . . 10 . 75 . 5 5 . 85 30 . Destroy Leader 1216 | . 60 40 148 202 224 54 10 20 . 50 98 10 . . . . . 96 10 10 . . 76 10 . . 10 40 48 . Allied During Kill 40 | . . 4 . 14 . . . . . 22 . . . . . . . . . . . . . . . . . . . . Successful Hack 606 | . 40 . 38 24 22 107 . . . . 94 . . . . . . 56 . . . . 79 . . . . 58 88 . Select Force Hacks 120 | . 30 . 30 30 30 . . . . . . . . . . . . . . . . . . . . . . . . . Disable Machine 945 | . 60 15 30 60 60 15 . . . . 330 . . . . . . 135 . . . . 135 . . . . 30 75 . Destroy Structure 1251 | . 58 23 37 64 125 53 . . . . 145 . . . . . . 286 . . . . 258 . . . . 124 78 . Advance Influence 450 | . . . . . . . . . . . . . . . . . . . . . . . 450 . . . . . . . Partial Spotted 285 | . . . . . . 30 . . . . 75 . . . . . . 75 . . . . . . . . . 105 . . Lose Combat Pursuer 2520 | . 15 . 15 45 45 135 . 90 . 45 600 . 60 . 45 . . 420 . 195 . 60 450 . . 150 . 15 60 75 Influence Decreases 13775 | 10 439 396 567 1040 1253 903 413 177 94 294 1095 447 214 254 45 . . 1024 337 497 100 60 998 528 415 417 545 402 606 205 Entered New Map 3193 | . . 64 . 132 238 357 121 1 94 . 32 277 74 254 . . . . 167 47 90 . . 388 105 157 435 . 95 65 Time Decay 8309 | 10 429 332 497 678 716 526 262 136 . 254 593 170 140 . 45 . . 530 170 440 10 60 598 140 310 240 110 402 441 70 Search Patrol Dispatched 450 | . . . . . . . . . . . 150 . . . . . . . . . . . 300 . . . . . . . Lost Part 470 | . 10 . 60 20 20 . 10 20 . . 20 . . . . . . 40 . 10 . . 100 . . 20 . . 70 70 Lost Ally 184 | . . . 10 60 10 20 20 20 . 40 . . . . . . . 4 . . . . . . . . . . . . Purge Threat 1169 | . . . . 150 269 . . . . . 300 . . . . . . 450 . . . . . . . . . . . . Squads Dispatched 74 | . 2 . 5 5 6 8 . . . . 10 . . . . . . 12 . . . . 8 . . . . 7 11 . Investigation 22 | . 2 . 2 2 2 2 . . . . 2 . . . . . . 5 . . . . 1 . . . . 1 3 . Extermination 26 | . . . . . . 3 . . . . 4 . . . . . . 6 . . . . 4 . . . . 4 5 . Reinforcement 22 | . . . 3 1 3 3 . . . . 3 . . . . . . 1 . . . . 3 . . . . 2 3 . Assault 4 | . . . . 2 1 . . . . . 1 . . . . . . . . . . . . . . . . . . . Garrison . | . . . . . . . . . . . . . . . . . . . . . . . . . . . . . . . Intercept . | . . . . . . . . . . . . . . . . . . . . . . . . . . . . . . . Searches Triggered 3 | . . . . . . . . . . . 1 . . . . . . . . . . . 2 . . . . . . . Data Miner Redirects 3 | . . . . . . . . . . . . . . . . . . 2 . . . . 1 . . . . . . . Construction Impeded 3 | . . . 1 . . . . . . . 1 . . . . . . . . . . . . . . . . . 1 . Haulers Reinforced . | . . . . . . . . . . . . . . . . . . . . . . . . . . . . . . . Active Scanning Responses . | . . . . . . . . . . . . . . . . . . . . . . . . . . . . . . . Cargo Convoy Interrupts . | . . . . . . . . . . . . . . . . . . . . . . . . . . . . . . . Stealth | -11 -10 -10 -9 -9 -8 -7 -7 -7 -7 -6 -6 -6 -6 -6 -5 -5 -5 -5 -5 -5 -5 -4 -4 -4 -4 -4 -3 -3 -3 -3 --------- Run | Yrd Mat Min Mat Sto Mat Fac Low Low Zio Pro Fac Low Low Dat Pro Fac Was Fac Upp Upp Zhi Pro Fac Upp Upp War Pro Res Qua Frg Distress Signals 29 | . 1 . 4 5 4 1 . . . . 4 . . . . . . . . . . 1 5 . . . . . 4 . Communications Jammed . | . . . . . . . . . . . . . . . . . . . . . . . . . . . . . . . Distress Signals . | . . . . . . . . . . . . . . . . . . . . . . . . . . . . . . . Times Spotted 658 | . 22 11 36 45 58 22 4 12 . 15 71 5 4 . 2 . 1 53 6 18 . 8 89 1 . 100 4 20 35 16 Peak Tracking Total 12 | . 6 3 9 9 5 5 3 4 . 4 9 4 2 . 3 . 1 6 4 4 . 3 12 1 . 9 3 5 7 11 Tactical Retreats 97 | . 1 . 1 3 3 4 . 2 . 3 21 . 2 . 2 . . 13 . 7 . 2 15 . . 7 . 1 9 1 Traps | -11 -10 -10 -9 -9 -8 -7 -7 -7 -7 -6 -6 -6 -6 -6 -5 -5 -5 -5 -5 -5 -5 -4 -4 -4 -4 -4 -3 -3 -3 -3 ------- Run | Yrd Mat Min Mat Sto Mat Fac Low Low Zio Pro Fac Low Low Dat Pro Fac Was Fac Upp Upp Zhi Pro Fac Upp Upp War Pro Res Qua Frg Traps Triggered 16 | . . 1 . 2 2 . . . . . 5 1 . . . 1 . 2 . . . . . . . . . 1 1 . Indirectly . | . . . . . . . . . . . . . . . . . . . . . . . . . . . . . . . Trap Hack Attempts . | . . . . . . . . . . . . . . . . . . . . . . . . . . . . . . . Triggered . | . . . . . . . . . . . . . . . . . . . . . . . . . . . . . . . Disarmed . | . . . . . . . . . . . . . . . . . . . . . . . . . . . . . . . Reprogrammed . | . . . . . . . . . . . . . . . . . . . . . . . . . . . . . . . Reused 3 | . . . . . . . . . . . . . . . . . . . . . . . . . . 3 . . . . Traps Extracted . | . . . . . . . . . . . . . . . . . . . . . . . . . . . . . . . Installed 5 | . . . . . . . . . . . . . . . . . . . . . . . . . . 5 . . . . Triggered 3 | . . . . . . . . . . . . . . . . . . . . . . . . . . 3 . . . . Most Traps Carried 5 | . . . . . . . . . . . . . . . . . . . . . . . . . 5 5 . . . . Machines | -11 -10 -10 -9 -9 -8 -7 -7 -7 -7 -6 -6 -6 -6 -6 -5 -5 -5 -5 -5 -5 -5 -4 -4 -4 -4 -4 -3 -3 -3 -3 ---------- Run | Yrd Mat Min Mat Sto Mat Fac Low Low Zio Pro Fac Low Low Dat Pro Fac Was Fac Upp Upp Zhi Pro Fac Upp Upp War Pro Res Qua Frg Machines Disabled 65 | . 4 1 2 4 4 1 . . . . 22 . . . . . . 9 . . . . 9 . . 2 . 2 5 . Max in Single Turn 10 | . 1 1 1 1 1 1 . . . . 10 . . . . . . 2 . . . . 1 . . 1 . 1 1 . Garrison Access 7 | . . . . . . . . . . . 1 . . . . . . 1 . . . . 1 . . . . 4 . . Machines Repaired . | . . . . . . . . . . . . . . . . . . . . . . . . . . . . . . . Machines Dismantled . | . . . . . . . . . . . . . . . . . . . . . . . . . . . . . . . Machines Sabotaged . | . . . . . . . . . . . . . . . . . . . . . . . . . . . . . . . Overloaded Fab Kills . | . . . . . . . . . . . . . . . . . . . . . . . . . . . . . . . Hacking | -11 -10 -10 -9 -9 -8 -7 -7 -7 -7 -6 -6 -6 -6 -6 -5 -5 -5 -5 -5 -5 -5 -4 -4 -4 -4 -4 -3 -3 -3 -3 --------- Run | Yrd Mat Min Mat Sto Mat Fac Low Low Zio Pro Fac Low Low Dat Pro Fac Was Fac Upp Upp Zhi Pro Fac Upp Upp War Pro Res Qua Frg Machines Accessed 146 | . 9 1 10 9 12 18 . . . . 13 . 1 4 1 . . 19 . . 4 . 15 . 1 1 . 16 10 2 Terminals 92 | . 8 . 8 6 10 9 . . . . 6 . . . 1 . . 13 . . . . 10 . . . . 9 10 2 Fabricators 9 | . . . . . . 3 . . . . 2 . . . . . . 2 . . . . 2 . . . . . . . Repair Stations 8 | . . . . 2 . 3 . . . . 2 . . . . . . . . . . . 1 . . . . . . . Recycling Units 9 | . 1 . 1 1 1 . . . . . 1 . . . . . . 2 . . . . . . . . . 2 . . Scanalyzers 8 | . . . 1 . . 3 . . . . 1 . . . . . . 1 . . . . 1 . . . . 1 . . Garrison Access 8 | . . . . . 1 . . . . . 1 . . . . . . 1 . . . . 1 . . . . 4 . . Total Hacks 527 | . 33 1 28 20 29 49 . . . . 48 . 1 25 1 . . 72 . . 17 . 79 . 1 1 . 67 41 14 Successful 319 | . 17 1 17 12 18 36 . . . . 32 . 1 25 1 . . 33 . . 17 . 46 . 1 1 . 35 19 7 Failed 207 | . 15 . 11 8 11 13 . . . . 16 . . . . . . 39 . . . . 33 . . . . 32 22 7 Catastrophic 23 | . . . 1 1 4 . . . . . 2 . . . . . . 7 . . . . 5 . . . . . 3 . Database Lockouts 1 | . 1 . . . . . . . . . . . . . . . . . . . . . . . . . . . . . Manual 272 | . 30 . 21 7 24 20 . . . . 16 . . . . . . 44 . . . . 39 . . 1 . 38 20 12 Terminals 348 | . 32 . 24 10 26 23 . . . . 20 . . . 1 . . 43 . . . . 60 . . . . 54 41 14 Fabricators 31 | . . . . . . 7 . . . . 6 . . . . . . 12 . . . . 6 . . . . . . . Repair Stations 39 | . . . . 8 . 12 . . . . 9 . . . . . . . . . . . 10 . . . . . . . Recycling Units 28 | . 1 . 2 2 2 . . . . . 6 . . . . . . 9 . . . . . . . . . 6 . . Scanalyzers 22 | . . . 2 . . 7 . . . . 4 . . . . . . 5 . . . . 1 . . . . 3 . . Garrison Access 13 | . . . . . 1 . . . . . 3 . . . . . . 3 . . . . 2 . . . . 4 . . Terminal Hacks 139 | . 5 1 4 5 6 6 . . . . 7 . 1 25 1 . . 10 . . 17 . 20 . 1 1 . 14 13 2 Record 18 | . . . . . . . . . . . . . . 11 1 . . . . . 5 . . . . . . . 1 . Part Schematic 18 | . 1 . . . 1 . . . . . . . . 9 . . . 1 . . 4 . 1 . . . . 1 . . Robot Schematic 2 | . . . . . . . . . . . . . . 2 . . . . . . . . . . . . . . . . Robot Analysis 8 | . 1 . 2 . . . . . . . 1 . . . . . . . . . 4 . . . . . . . . . Prototype ID Bank 7 | . . . . . . . . . . . . . . 3 . . . . . . 4 . . . . . . . . . Open Door 7 | . . 1 . 3 . . . . . . . . 1 . . . . . . . . . . . 1 1 . . . . Level Access Points 1 | . . . . . . . . . . . . . . . . . . . . . . . . . . . . . 1 . Branch Access Points 4 | . . . . . . 1 . . . . . . . . . . . 1 . . . . 1 . . . . 1 . . Emergency Access Points 2 | . . . . . . . . . . . . . . . . . . . . . . . 2 . . . . . . . Machine Index 1 | . . . . . . . . . . . . . . . . . . . . . . . 1 . . . . . . . Terminal Index 6 | . 1 . 1 . . 1 . . . . . . . . . . . 1 . . . . 1 . . . . . 1 . Fabricator Index 1 | . . . . . . . . . . . . . . . . . . . . . . . 1 . . . . . . . Repair Station Index 1 | . . . . . . . . . . . . . . . . . . . . . . . 1 . . . . . . . Scanalyzer Index 1 | . . . . . . 1 . . . . . . . . . . . . . . . . . . . . . . . . Alert Level 5 | . . . 1 1 1 . . . . . . . . . . . . . . . . . 1 . . . . . 1 . Unreport Threat 8 | . . . . 1 2 . . . . . 2 . . . . . . 3 . . . . . . . . . . . . Locate Traps 4 | . 1 . . . . 1 . . . . 1 . . . . . . . . . . . . . . . . . 1 . Dispatch Records 3 | . 1 . . . . 1 . . . . . . . . . . . . . . . . 1 . . . . . . . Maintenance Status 4 | . . . . . . . . . . . . . . . . . . . . . . . 1 . . . . 1 2 . Security Status 1 | . . . . . . . . . . . . . . . . . . . . . . . . . . . . 1 . . Surveillance Status 1 | . . . . . . . . . . . . . . . . . . . . . . . 1 . . . . . . . Patrol Status 6 | . . . . . . . . . . . . . . . . . . . . . . . 1 . . . . 4 1 . Transport Status 1 | . . . . . . . . . . . . . . . . . . . . . . . . . . . . 1 . . Recall Extermination 4 | . . . . . . . . . . . . . . . . . . 1 . . . . . . . . . 2 1 . Recall Reinforcements 1 | . . . . . . . . . . . . . . . . . . . . . . . . . . . . . 1 . Hauler Manifests 6 | . . . . . 1 . . . . . 1 . . . . . . 1 . . . . 1 . . . . 1 1 . Registered Components 1 | . . . . . . . . . . . . . . . . . . . . . . . 1 . . . . . . . Registered Prototypes 5 | . . . . . . 1 . . . . 1 . . . . . . . . . . . 1 . . . . 1 1 . Zone Layout 12 | . . . . . 1 . . . . . 1 . . . . . . 2 . . . . 4 . . . . 1 1 2 Fabricator Hacks 14 | . . . . . . 3 . . . . 3 . . . . . . 4 . . . . 4 . . . . . . . Network Status 4 | . . . . . . 1 . . . . 1 . . . . . . 1 . . . . 1 . . . . . . . Load Schematic 5 | . . . . . . 1 . . . . 1 . . . . . . 2 . . . . 1 . . . . . . . Build 5 | . . . . . . 1 . . . . 1 . . . . . . 1 . . . . 2 . . . . . . . Repair Station Hacks 31 | . . . . 5 . 10 . . . . 6 . . . . . . . . . . . 10 . . . . . . . Scan Component 16 | . . . . 3 . 5 . . . . 3 . . . . . . . . . . . 5 . . . . . . . Repair 15 | . . . . 2 . 5 . . . . 3 . . . . . . . . . . . 5 . . . . . . . Recycling Unit Hacks 9 | . . . 1 1 1 . . . . . 1 . . . . . . 2 . . . . . . . . . 3 . . Process 1 | . . . . . . . . . . . . . . . . . . 1 . . . . . . . . . . . . Report Inventory 5 | . . . 1 1 1 . . . . . . . . . . . . . . . . . . . . . . 2 . . Retrieve Matter 2 | . . . . . . . . . . . . . . . . . . 1 . . . . . . . . . 1 . . Retrieve Components 1 | . . . . . . . . . . . 1 . . . . . . . . . . . . . . . . . . . Scanalyzer 15 | . . . 1 . . 4 . . . . 4 . . . . . . 4 . . . . 1 . . . . 1 . . Insert Component 9 | . . . 1 . . 2 . . . . 2 . . . . . . 2 . . . . 1 . . . . 1 . . Analyze 6 | . . . . . . 2 . . . . 2 . . . . . . 2 . . . . . . . . . . . . Garrison Access Hacks 7 | . . . . . . . . . . . 1 . . . . . . 1 . . . . 1 . . . . 4 . . Seal Access 7 | . . . . . . . . . . . 1 . . . . . . 1 . . . . 1 . . . . 4 . . Unauthorized Hacks 104 | . 12 . 11 1 11 13 . . . . 10 . . . . . . 12 . . . . 10 . . . . 13 6 5 Terminals 83 | . 11 . 10 . 9 8 . . . . 6 . . . . . . 8 . . . . 9 . . . . 11 6 5 Track 2 | . . . . . . . . . . . . . . . . . . 1 . . . . . . . . . . . 1 Assimilate 7 | . 2 . 1 . 2 1 . . . . . . . . . . . 1 . . . . . . . . . . . . Botnet 21 | . 3 . 2 . 1 1 . . . . 1 . . . . . . 1 . . . . 2 . . . . 5 3 2 Disrupt 1 | . . . . . . . . . . . . . . . . . . . . . . . . . . . . 1 . . Operators 4 | . 1 . 1 . 1 1 . . . . . . . . . . . . . . . . . . . . . . . . Skim 48 | . 5 . 6 . 5 5 . . . . 5 . . . . . . 5 . . . . 7 . . . . 5 3 2 Fabricators 5 | . . . . . . 4 . . . . . . . . . . . . . . . . 1 . . . . . . . Report 1 | . . . . . . 1 . . . . . . . . . . . . . . . . . . . . . . . . Prioritize 1 | . . . . . . . . . . . . . . . . . . . . . . . 1 . . . . . . . Liberate 2 | . . . . . . 2 . . . . . . . . . . . . . . . . . . . . . . . . Haulers 1 | . . . . . . 1 . . . . . . . . . . . . . . . . . . . . . . . . Repair Stations 1 | . . . . . . 1 . . . . . . . . . . . . . . . . . . . . . . . . Mechanics 1 | . . . . . . 1 . . . . . . . . . . . . . . . . . . . . . . . . Recycling Units 14 | . 1 . 1 1 1 . . . . . 4 . . . . . . 4 . . . . . . . . . 2 . . Monitor 2 | . . . . . . . . . . . 1 . . . . . . 1 . . . . . . . . . . . . Reject 2 | . . . . . . . . . . . 1 . . . . . . 1 . . . . . . . . . . . . Recyclers 3 | . . . . . . . . . . . 1 . . . . . . 1 . . . . . . . . . 1 . . Mask 3 | . . . . . . . . . . . 1 . . . . . . 1 . . . . . . . . . 1 . . Tunnel 4 | . 1 . 1 1 1 . . . . . . . . . . . . . . . . . . . . . . . . . Scanalyzers . | . . . . . . . . . . . . . . . . . . . . . . . . . . . . . . . Garrison Access 1 | . . . . . 1 . . . . . . . . . . . . . . . . . . . . . . . . . Restock 1 | . . . . . 1 . . . . . . . . . . . . . . . . . . . . . . . . . Data Cores Recovered . | . . . . . . . . . . . . . . . . . . . . . . . . . . . . . . . Used . | . . . . . . . . . . . . . . . . . . . . . . . . . . . . . . . Hacking Detections 111 | . 7 . 8 6 10 16 . . . . 11 . . . . . . 19 . . . . 11 . . . . 11 10 2 Full Trace Events 14 | . 1 . . 1 . 2 . . . . 1 . . . . . . 5 . . . . 1 . . . . 1 2 . Feedback Events 1 | . . . . . . . . . . . . . . . . . . . . . . . . . . . . 1 . . Corruption 1 | . . . . . . . . . . . . . . . . . . . . . . . . . . . . 1 . . Feedback Blocked . | . . . . . . . . . . . . . . . . . . . . . . . . . . . . . . . Robot Schematics Acquired 6 | . . . . . . . . . 4 . . . . 2 . . . . . . . . . . . . . . . . Robots Built . | . . . . . . . . . . . . . . . . . . . . . . . . . . . . . . . Authchips . | . . . . . . . . . . . . . . . . . . . . . . . . . . . . . . . Time . | . . . . . . . . . . . . . . . . . . . . . . . . . . . . . . . Total Robot Build Rating . | . . . . . . . . . . . . . . . . . . . . . . . . . . . . . . . Part Schematics Acquired 38 | . 1 . . . 1 1 . . 15 . 2 . . 9 . . . 3 . . 4 . 1 . . . . 1 . . Parts Built 7 | . . . . . . 2 . . . . 1 . . . . . . 1 . . . . 3 . . . . . . . Authchips . | . . . . . . . . . . . . . . . . . . . . . . . . . . . . . . . Time 296 | . . . . . . 42 . . . . 36 . . . . . . 53 . . . . 165 . . . . . . . Total Part Build Rating 41 | . . . . . . 8 . . . . 3 . . . . . . 6 . . . . 24 . . . . . . . Parts Repaired 15 | . . . . 2 . 5 . . . . 3 . . . . . . . . . . . 5 . . . . . . . Time 655 | . . . . 64 . 197 . . . . 120 . . . . . . . . . . . 274 . . . . . . . Parts Recycled . | . . . . . . . . . . . . . . . . . . . . . . . . . . . . . . . Recycled Matter 445 | . . . . . . . . . . . . . . . . . . 445 . . . . . . . . . . . . Retrieved Matter 716 | . . . . . . . . . . . . . . . . . . 716 . . . . . . . . . . . . Retrieved Components 3 | . . . . . . . . . . . 3 . . . . . . . . . . . . . . . . . . . Parts Scanalyzed 7 | . . . 1 . . 2 . . . . 1 . . . . . . 2 . . . . . . . . . 1 . . Part Schematics Acquired 5 | . . . . . . 1 . . . . 2 . . . . . . 2 . . . . . . . . . . . . Parts Damaged . | . . . . . . . . . . . . . . . . . . . . . . . . . . . . . . . Bothacking | -11 -10 -10 -9 -9 -8 -7 -7 -7 -7 -6 -6 -6 -6 -6 -5 -5 -5 -5 -5 -5 -5 -4 -4 -4 -4 -4 -3 -3 -3 -3 ------------ Run | Yrd Mat Min Mat Sto Mat Fac Low Low Zio Pro Fac Low Low Dat Pro Fac Was Fac Upp Upp Zhi Pro Fac Upp Upp War Pro Res Qua Frg Used RIF Installer . | . . . . . . . . . . . . . . . . . . . . . . . . . . . . . . . Robots Hacked . | . . . . . . . . . . . . . . . . . . . . . . . . . . . . . . . Non-combat . | . . . . . . . . . . . . . . . . . . . . . . . . . . . . . . . Combat . | . . . . . . . . . . . . . . . . . . . . . . . . . . . . . . . Robot Hacks Applied . | . . . . . . . . . . . . . . . . . . . . . . . . . . . . . . . Relay Couplers Released 3 | . . . . . 3 . . . . . . . . . . . . . . . . . . . . . . . . . Programmers 3 | . . . . . 3 . . . . . . . . . . . . . . . . . . . . . . . . . Fabnet Peak Effective % . | . . . . . . . . . . . . . . . . . . . . . . . . . . . . . . . Robots Rewired 4 | . . . . . . . 3 . . . . . . . . . . . . . . . . . . 1 . . . . Allies Hacked . | . . . . . . . . . . . . . . . . . . . . . . . . . . . . . . . Hacks Repelled 2 | . . . . . . . . . . . . . . . . . . . . . . . . . . 2 . . . . Allies | -11 -10 -10 -9 -9 -8 -7 -7 -7 -7 -6 -6 -6 -6 -6 -5 -5 -5 -5 -5 -5 -5 -4 -4 -4 -4 -4 -3 -3 -3 -3 -------- Run | Yrd Mat Min Mat Sto Mat Fac Low Low Zio Pro Fac Low Low Dat Pro Fac Was Fac Upp Upp Zhi Pro Fac Upp Upp War Pro Res Qua Frg Total Allies 15 | . 1 1 1 2 2 1 3 . 2 . . . . . . . . 1 . . . . . . . 1 . . . . Largest Group 3 | . 1 1 1 2 1 1 3 2 2 2 . . . . . . . 1 . . . . . . . 1 . . . . Highest-Rated Group 64 | . 10 31 10 62 10 26 48 32 59 59 . . . . . . . 10 . . . . . . . 64 . . . . Highest-Rated Ally 64 | . 10 31 10 31 10 26 16 16 39 39 . . . . . . . 10 . . . . . . . 64 . . . . Total Orders 18 | . . . 4 4 10 . . . . . . . . . . . . . . . . . . . . . . . . . STAY 7 | . . . 2 . 5 . . . . . . . . . . . . . . . . . . . . . . . . . FOLLOW 7 | . . . 2 . 5 . . . . . . . . . . . . . . . . . . . . . . . . . EXPLORE 2 | . . . . 2 . . . . . . . . . . . . . . . . . . . . . . . . . . RETURN 2 | . . . . 2 . . . . . . . . . . . . . . . . . . . . . . . . . . Ally Attacks 75 | . . 13 . 29 . . 14 5 . 14 . . . . . . . . . . . . . . . . . . . . Total Damage 1107 | . . 168 . 472 . . 208 56 . 203 . . . . . . . . . . . . . . . . . . . . Kills 11 | . . 3 . 4 . . 1 . . 3 . . . . . . . . . . . . . . . . . . . . Allies Corrupted . | . . . . . . . . . . . . . . . . . . . . . . . . . . . . . . . Allies Melted 1 | . . . . . . . . . . . . . . . . . . . . 1 . . . . . . . . . . Intel | -11 -10 -10 -9 -9 -8 -7 -7 -7 -7 -6 -6 -6 -6 -6 -5 -5 -5 -5 -5 -5 -5 -4 -4 -4 -4 -4 -3 -3 -3 -3 ------- Run | Yrd Mat Min Mat Sto Mat Fac Low Low Zio Pro Fac Low Low Dat Pro Fac Was Fac Upp Upp Zhi Pro Fac Upp Upp War Pro Res Qua Frg Active Infowar (turns) 24297 | 7 1143 861 1644 1330 . 1404 578 532 586 547 1882 349 297 47 366 40 242 2239 349 1446 142 548 1914 285 680 1220 576 1582 1308 153 Optics 19312 | . . . . . . 1404 578 532 586 547 1882 349 297 47 366 40 242 2239 349 1446 142 548 1914 285 680 1220 576 1582 1308 153 Sensors 4349 | . . . . . . . . . . . . . . . . . . . 1 502 . . . . 629 191 571 1579 876 . IFF 1794 | . . . . . . . . . . . . . . . . . . . . . 3 515 1276 . . . . . . . Seismic 5554 | 7 1143 861 1644 1330 . . . . . . 569 . . . . . . . . . . . . . . . . . . . Decoding 109 | . . . . . . . . . . . . . . . . . . . . . . . . 109 . . . . . . Cloaking 2726 | . . . . . . . . . . . . . . . . . 1 71 26 57 . 13 20 . . 39 . 1450 1049 . ECM 1000 | . . . . . . . . . . . . . . . . . . . . . . . . . . . . . 994 6 Robot Analysis Total 8 | . 1 . 2 . . . . . . . 1 . . . . . . . . . 4 . . . . . . . . . Derelict Logs Recovered 20 | . . 1 . . . . 2 1 . 2 . 1 . . 2 . . . 2 1 . 2 . 3 3 . . . . . Drone Launches 18 | . . . . 18 . . . . . . . . . . . . . . . . . . . . . . . . . . Drone Recoveries 7 | . . . . 7 . . . . . . . . . . . . . . . . . . . . . . . . . . Exploration | -11 -10 -10 -9 -9 -8 -7 -7 -7 -7 -6 -6 -6 -6 -6 -5 -5 -5 -5 -5 -5 -5 -4 -4 -4 -4 -4 -3 -3 -3 -3 ------------- Run | Yrd Mat Min Mat Sto Mat Fac Low Low Zio Pro Fac Low Low Dat Pro Fac Was Fac Upp Upp Zhi Pro Fac Upp Upp War Pro Res Qua Frg Turns Passed 29619 | 74 1143 861 1844 2678 3615 1462 578 532 586 547 1916 349 297 47 366 40 242 2239 349 1446 142 548 1914 285 680 1220 576 1582 1308 153 Spaces Moved 29557 | 13 654 607 949 966 1410 1759 905 910 1036 986 2745 579 400 77 630 65 367 2815 527 1634 181 531 1971 398 925 983 707 2183 1434 210 Core 52 | . . . . . . . . . . . . . . . . . . . . . . . . . . . . . . 52 Treads 3083 | . . . 691 966 1410 16 . . . . . . . . . . . . . . . . . . . . . . . . Legs 161 | 13 148 . . . . . . . . . . . . . . . . . . . . . . . . . . . . . Wheels 1371 | . 506 607 258 . . . . . . . . . . . . . . . . . . . . . . . . . . . Hover 24890 | . . . . . . 1743 905 910 1036 986 2745 579 400 77 630 65 367 2815 527 1634 181 531 1971 398 925 983 707 2183 1434 158 Flight . | . . . . . . . . . . . . . . . . . . . . . . . . . . . . . . . Fastest Speed 44 | 120 115 115 115 160 160 44 44 44 44 44 44 58 58 58 58 58 56 53 58 58 58 58 48 56 56 50 51 47 50 50 Average Speed 71 | 120 117 115 150 173 213 46 44 44 44 44 52 58 58 58 58 58 58 58 58 58 58 58 54 57 56 65 51 49 65 68 Slowest Speed 245 | 120 190 115 240 240 245 245 44 44 44 44 58 58 58 58 58 58 126 126 58 58 58 58 65 58 56 111 111 103 114 80 Overloaded Moves . | . . . . . . . . . . . . . . . . . . . . . . . . . . . . . . . Propulsion Burnouts . | . . . . . . . . . . . . . . . . . . . . . . . . . . . . . . . Robots Hopped . | . . . . . . . . . . . . . . . . . . . . . . . . . . . . . . . Potential Cave-ins 2 | . . . . . . . . . . . . . . . . . . . . . . 2 . . . . . . . . Cave-ins Triggered . | . . . . . . . . . . . . . . . . . . . . . . . . . . . . . . . Teleports 1 | . . . . . . . . . . . . . . . . . . . . . . . 1 . . . . . . . Exploration Rate (%) 71 | 3 97 99 83 95 91 53 85 89 90 87 68 83 54 73 88 3 96 64 75 91 63 67 41 59 90 90 82 68 87 9 Regions Visited 30 Branch Regions 20 Pre-discovered Areas 24 | . 1 1 3 1 3 1 . . 2 1 4 . . 1 . . . . . . 3 . . 1 1 . . 1 . . Known Exits Taken 17 | . . 1 1 1 . 1 . . . 1 1 1 . . 1 . . 1 . . . 1 1 1 1 1 1 1 1 . Unknown Exits Taken 11 | 1 1 . . . 1 . 1 1 1 . . . 1 1 . . . . 1 1 1 . . . . . . . . . Scrap Searched 40 | . . 1 . . . . 4 1 3 3 . 2 2 . 5 . . . 3 4 . 4 . 2 1 . 5 . . . Spaces Dug 296 | . 9 . 1 5 10 39 1 . . 9 28 . . . . . . 58 . 7 . 20 45 3 2 4 3 32 20 . Terrain Destroyed 1273 | . 61 24 44 82 139 59 29 44 . 16 147 29 3 1 . . . 175 11 39 . 44 159 6 4 8 36 72 41 . Melee 29 | . . . . . . . . . . . 9 . . . . . . . . . . . 7 . . . . 13 . . Projectile 460 | . 1 . 4 13 28 19 5 5 . 7 54 1 3 1 . . . 93 5 39 . 44 41 6 4 8 6 32 41 . AOE 784 | . 60 24 40 69 111 40 24 39 . 9 84 28 . . . . . 82 6 . . . 111 . . . 30 27 . . Terrain Rammed . | . . . . . . . . . . . . . . . . . . . . . . . . . . . . . . . Walls Destroyed . | . . . . . . . . . . . . . . . . . . . . . . . . . . . . . . . Machines Disabled . | . . . . . . . . . . . . . . . . . . . . . . . . . . . . . . . Actions | -11 -10 -10 -9 -9 -8 -7 -7 -7 -7 -6 -6 -6 -6 -6 -5 -5 -5 -5 -5 -5 -5 -4 -4 -4 -4 -4 -3 -3 -3 -3 --------- Run | Yrd Mat Min Mat Sto Mat Fac Low Low Zio Pro Fac Low Low Dat Pro Fac Was Fac Upp Upp Zhi Pro Fac Upp Upp War Pro Res Qua Frg Total 36294 | 55 941 754 1233 1766 1873 2352 1066 1015 1165 1078 3067 588 457 78 630 67 389 3205 556 2049 207 722 2653 445 1064 1417 910 2572 1701 219 Wait 4621 | 33 193 133 151 613 277 495 125 61 119 61 146 3 45 . 1 2 . 202 11 342 . 141 529 34 102 254 186 203 153 6 Move 29528 | 12 653 606 948 965 1409 1758 904 909 1035 985 2744 578 399 76 629 65 366 2813 526 1633 180 531 1970 397 924 982 706 2182 1433 210 Hop . | . . . . . . . . . . . . . . . . . . . . . . . . . . . . . . . Pick Up 145 | 1 13 2 15 6 21 6 2 6 3 5 13 . . . . . 1 6 . 4 2 4 9 1 5 8 . 8 4 . Fast Attach 203 | 1 2 . 7 20 10 6 3 3 1 1 15 1 4 1 . . 6 18 1 4 9 2 16 3 8 19 3 28 11 . Attach 78 | . 2 . 7 . 1 11 2 6 . 2 6 1 . . . . . 3 3 1 1 3 15 1 . 2 1 7 3 . Detach 38 | . . . 1 . 1 2 1 2 . . 8 1 . . . . . 1 2 1 1 . 6 1 . 1 1 7 1 . Swap 121 | . 9 5 11 24 20 8 . 1 2 2 5 . . . . . . 6 1 1 1 2 2 . 3 6 2 6 4 . Drop 310 | . 10 . 17 30 30 23 5 6 4 6 26 1 4 1 . . 6 21 2 7 8 6 9 2 8 26 3 38 11 . Fire 1149 | 8 59 8 76 107 104 42 14 21 1 15 89 3 5 . . . 4 134 10 56 . 33 83 6 14 113 8 55 81 . Melee 72 | . . . . . . . . . . 1 14 . . . . . . . . . 5 . 14 . . . . 38 . . Ram 5 | . . . . . . 1 . . . . 1 . . . . . . . . . . . . . . . . . . 3 Kick . | . . . . . . . . . . . . . . . . . . . . . . . . . . . . . . . Crush 1 | . . . . 1 . . . . . . . . . . . . . . . . . . . . . . . . . . Escape Stasis 1 | . . . . . . . . . . . . . . . . . . 1 . . . . . . . . . . . . Rewire 17 | . . . . . . . 10 . . . . . . . . . 6 . . . . . . . . 1 . . . . Trap 5 | . . . . . . . . . . . . . . . . . . . . . . . . . . 5 . . . . Miscellaneous . | . . . . . . . . . . . . . . . . . . . . . . . . . . . . . . . Route ------- -11/Scrapyard -10/Materials (discovered 6 exits: *Mat x3 / *Min x2 / *Sub) -10/Mines (discovered 2 exits: *Mat x2) -9/Materials (discovered 5 exits: *Mat x3 / [*Min] / *Sto) -9/Storage -8/Materials (discovered 2 exits: *Fac x2) -7/Factory (discovered 4 exits: *Fac x2 / *Low x2) -7/Lower Caves (discovered 2 exits: [*Low] / *Zio) -7/Lower Caves (discovered 2 exits: *Fac / *Zio) -7/Zion -6/Proximity Caves -6/Factory (discovered 6 exits: *Fac x4 / *Low x2) -6/Lower Caves -6/Lower Caves (discovered 2 exits: *Fac / *Dat) -6/Data Miner -5/Proximity Caves -5/Factory (discovered 2 exits: Fac / Upp) -5/Waste -5/Factory (discovered 6 exits: *Fac x4 / *Upp x2) -5/Upper Caves -5/Upper Caves (discovered 2 exits: *Fac / *Zhi) -5/Zhirov -4/Proximity Caves -4/Factory (discovered 5 exits: *Upp x2 / *Ext x2 / Arm) -4/Upper Caves -4/Upper Caves (discovered 2 exits: *Res / *War) -4/Warlord -3/Proximity Caves -3/Research (discovered 5 exits: *Res x3 / *Qua x2) -3/Quarantine (discovered 3 exits: *Res / *Sec / *Frg) -3/Protoforge History --------- Turn | Location | Event 19 | -11/Scrapyard | Discovered new exit (range 1) 75 | -11/Scrapyard | Entered Materials 181 | -10/Materials | Discovered new exit (range 5) 284 | -10/Materials | Discovered new exit (range 16) 313 | -10/Materials | Build established: Mutant 383 | -10/Materials | Discovered new exit (range 3) 712 | -10/Materials | Central database locked down 861 | -10/Materials | Discovered new exit (range 15) 914 | -10/Materials | Identified exit to Subcaves 969 | -10/Materials | Identified exit to Materials 1054 | -10/Materials | Learned 4 Recycling zone layouts 1100 | -10/Materials | Learned 2 Mines zone layouts 1167 | -10/Materials | Learned Storage terminal intel 1218 | -10/Materials | Entered Mines 1218 | -10/Mines | Accompanied by 1 ally 1225 | -10/Mines | Escorted by a lone wolf Derelict 1245 | -10/Mines | Learned location of Storage (-9) 1485 | -10/Mines | Met a Derelict who couldn't figure out how to use a Trap Extractor 1866 | -10/Mines | Discovered exit to Materials (range 13) 1882 | -10/Mines | Learned Materials stockpile data 2072 | -10/Mines | Discovered exit to Materials (range 5) 2079 | -10/Mines | Entered Materials 2079 | -9/Materials | Evolved 2 slots: Propulsion x1, Utility x1 2080 | -9/Materials | Identified exit to Storage 2423 | -9/Materials | Discovered new exit (range 9) 2505 | -9/Materials | Destroyed 7 combat bots 2513 | -9/Materials | Lost 4 parts (1p2n1w) 2712 | -9/Materials | Discovered new exit (range 10) 2832 | -9/Materials | Loaded intel: 2 repair station locations 2897 | -9/Materials | Identified exit to Materials 2953 | -9/Materials | Learned location of Zion (-7) 3066 | -9/Materials | Learned location of Mines (-8) 3081 | -9/Materials | Learned Storage emergency access door positions 3108 | -9/Materials | Learned 4 Recycling zone layouts 3147 | -9/Materials | Learned Storage terminal intel 3923 | -9/Materials | Entered Storage 3925 | -9/Storage | Loaded intel: 15 terminal locations 4161 | -9/Storage | Lost 11 allies 5252 | -9/Storage | Core integrity fell below 50% 5343 | -9/Storage | Discovered exit to Materials (range 15) 5737 | -9/Storage | Met a pair of Derelict thieves 6060 | -9/Storage | Repaired Hrd. Light Armor Plating 6094 | -9/Storage | Repaired Imp. Light Cannon 6601 | -9/Storage | Entered Materials 6601 | -8/Materials | Evolved 2 slots: Propulsion x2 7006 | -8/Materials | Build established: Scavenger-Mutant 7478 | -8/Materials | Build established: Mutant 8060 | -8/Materials | Discovered new exit (range 9) 8672 | -8/Materials | Learned Factory stockpile data 8742 | -8/Materials | Learned Factory stockpile data 8801 | -8/Materials | Learned Storage stockpile data 8848 | -8/Materials | Learned 4 Recycling zone layouts 8883 | -8/Materials | Learned 4 Lower Caves zone layouts 8908 | -8/Materials | Learned location of Extension (-4) 8943 | -8/Materials | Learned 2 Storage zone layouts 8990 | -8/Materials | Learned Storage security intel 9049 | -8/Materials | Learned location of 1 exit from Recycling 9189 | -8/Materials | Discovered new exit (range 10) 9801 | -8/Materials | First assault squad dispatched 10039 | -8/Materials | Build established: Scavenger-Mutant 10216 | -8/Materials | Entered Factory 10216 | -7/Factory | Accompanied by 1 ally 10216 | -7/Factory | Evolved 2 slots: Utility x2 10381 | -7/Factory | Repaired Hvy. Assault Cannon 10415 | -7/Factory | Repaired Hrd. Light Armor Plating 10467 | -7/Factory | Repaired Cld. Ion Engine 10507 | -7/Factory | Repaired Airjet 10563 | -7/Factory | Identified exit to Lower Caves 10678 | -7/Factory | Repaired Airjet 11057 | -7/Factory | Discovered new exit (range 19) 11246 | -7/Factory | Learned 4 Proximity Caves zone layouts 11322 | -7/Factory | Identified exit to Factory 11390 | -7/Factory | Learned Extension security intel 11413 | -7/Factory | Build established: Hacker-Mutant 11451 | -7/Factory | Fabricated Gravmag System (x2) 11492 | -7/Factory | Learned 4 Lower Caves zone layouts 11525 | -7/Factory | Learned 4 Factory zone layouts 11566 | -7/Factory | Learned Extension emergency access door positions 11616 | -7/Factory | Loaded intel: 4 garrison access locations 11675 | -7/Factory | Learned location of Lower Caves (-7) 11678 | -7/Factory | Entered Lower Caves 11700 | -7/Lower Caves | Learned Factory emergency access door positions 11772 | -7/Lower Caves | Attacked by a delusional Derelict stockpiling Unaware 11864 | -7/Lower Caves | Learned Factory garrison access intel 11881 | -7/Lower Caves | Encountered a Warlord checkpoint 12016 | -7/Lower Caves | A Derelict revealed a hidden shortcut to a safe place 12039 | -7/Lower Caves | Discovered new exit (range 11) 12256 | -7/Lower Caves | Entered another Lower Caves area 12256 | -7/Lower Caves | Accompanied by 2 allies 12325 | -7/Lower Caves | Discovered exit to Factory (range 15) 12579 | -7/Lower Caves | Attracted the attention of an 0b10 checkpoint 12742 | -7/Lower Caves | Learned Factory emergency access door positions 12777 | -7/Lower Caves | Discovered new exit (range 11) 12788 | -7/Lower Caves | Entered Zion 12802 | -7/Zion | Discovered new exit (range 15) 12812 | -7/Zion | System corruption cleaned by Quarantine Array 12866 | -7/Zion | Acquired unknown access codes intercepted by a Zionite 12871 | -7/Zion | Given the Hacking Drone Bay 12983 | -7/Zion | Learned location of Warlord (-4) 12994 | -7/Zion | Learned location of Data Miner (-6) 13001 | -7/Zion | Gained Derelict followers 13121 | -7/Zion | Met Imprinter 13217 | -7/Zion | Found CR-A16's Pointy Stick 13374 | -7/Zion | Entered Proximity Caves 13374 | -6/Proximity Caves | Accompanied by 2 allies 13725 | -6/Proximity Caves | Spotted B-75 Beast 13741 | -6/Proximity Caves | Learned location of 1 exit from Factory 13896 | -6/Proximity Caves | Discovered exit to Factory (range 6) 13921 | -6/Proximity Caves | Entered Factory 13921 | -6/Factory | Evolved 2 slots: Utility x2 13922 | -6/Factory | Identified exit to Lower Caves 13926 | -6/Factory | Loaded intel: 4 garrison access locations 14456 | -6/Factory | Discovered exit to Lower Caves (range 10) 14517 | -6/Factory | System corruption reached 10% 14618 | -6/Factory | Repaired Imp. Medium Armor Plating 14656 | -6/Factory | Repaired Imp. Propulsion Shielding 14667 | -6/Factory | Discovered new exit (range 6) 14960 | -6/Factory | Discovered new exit (range 16) 15204 | -6/Factory | Fabricated Hvy. Assault Cannon? 15318 | -6/Factory | Discovered new exit (range 4) 15321 | -6/Factory | First assault squad dispatched 15434 | -6/Factory | Learned Factory emergency access door positions 15444 | -6/Factory | Spotted B-75 Beast 15491 | -6/Factory | Learned location of 2 exits from Factory 15506 | -6/Factory | Learned location of Archives (-4) 15512 | -6/Factory | Learned Hub_04(d) emergency access door positions 15513 | -6/Factory | Identified exit to Factory 15524 | -6/Factory | Learned location of 1 exit from Lower Caves 15671 | -6/Factory | Search patrols dispatched 15754 | -6/Factory | Repaired Hvy. Assault Cannon 15837 | -6/Factory | Entered Lower Caves 15838 | -6/Lower Caves | Identified exit to Lower Caves 16186 | -6/Lower Caves | Entered another Lower Caves area 16196 | -6/Lower Caves | Discovered exit to Factory (range 4) 16429 | -6/Lower Caves | Discovered new exit (range 21) 16483 | -6/Lower Caves | Entered Data Miner 16483 | -6/Data Miner | Discovered new exit (range 6) 16492 | -6/Data Miner | Met Data Miner 16507 | -6/Data Miner | Learned location of Section 7 (-3) 16507 | -6/Data Miner | Acquired the access code to Warlord's prototype stash 16514 | -6/Data Miner | Received God Mode back door access code from Data Miner 16530 | -6/Data Miner | Entered Proximity Caves 16647 | -5/Proximity Caves | Spotted B-75 Beast 16666 | -5/Proximity Caves | Learned Factory emergency access door positions 16840 | -5/Proximity Caves | Learned Factory terminal intel 16858 | -5/Proximity Caves | Discovered exit to Factory (range 12) 16896 | -5/Proximity Caves | Entered Factory 16896 | -5/Factory | Evolved 2 slots: Utility x2 16897 | -5/Factory | Identified exit to Upper Caves 16897 | -5/Factory | Identified exit to Factory 16899 | -5/Factory | Loaded intel: 26 terminal locations 16936 | -5/Factory | Sucked down chute 16936 | -5/Factory | Entered Waste 16936 | -5/Waste | The area was eerily silent 17056 | -5/Waste | Discovered new exit (range 12) 17096 | -5/Waste | A Compactor rumbled back to life 17096 | -5/Waste | Spotted C-40 Crusher 17130 | -5/Waste | Destroyed C-40 Crusher 17176 | -5/Waste | A Compactor rumbled back to life 17176 | -5/Waste | Spotted C-40 Crusher 17178 | -5/Waste | Entered Factory 17325 | -5/Factory | Discovered exit to Factory (range 19) 17685 | -5/Factory | Discovered exit to Factory (range 16) 18140 | -5/Factory | Fabricated Hvy. Mass Driver? 18612 | -5/Factory | Incoming investigation squad redirected 18661 | -5/Factory | Lost 3 parts (1n2u) 18775 | -5/Factory | Loaded intel: 68 trap records 18805 | -5/Factory | Incoming investigation squad redirected 18855 | -5/Factory | Learned 2 Extension zone layouts 18879 | -5/Factory | Learned location of 1 exit from Extension 18899 | -5/Factory | Learned location of 1 exit from Extension 18915 | -5/Factory | Learned 4 Proximity Caves zone layouts 18978 | -5/Factory | Learned 4 Extension zone layouts 19417 | -5/Factory | Entered Upper Caves 19629 | -5/Upper Caves | Encountered a Warlord checkpoint 19735 | -5/Upper Caves | Learned Factory trap positions 19746 | -5/Upper Caves | Discovered new exit (range 6) 19766 | -5/Upper Caves | Entered another Upper Caves area 19966 | -5/Upper Caves | Learned Factory garrison access intel 20256 | -5/Upper Caves | Attracted the attention of an 0b10 checkpoint 20439 | -5/Upper Caves | Spotted B-75 Beast 20489 | -5/Upper Caves | Found DCF Scrap (11 items) 21170 | -5/Upper Caves | Discovered new exit (range 18) 21212 | -5/Upper Caves | Entered Zhirov 21212 | -5/Zhirov | Discovered new exit (range 3) 21223 | -5/Zhirov | Met Zhirov 21240 | -5/Zhirov | Learned location of Quarantine (-3) 21240 | -5/Zhirov | Learned location of Testing (-2) 21240 | -5/Zhirov | Learned location of Command (-1) 21245 | -5/Zhirov | Zhirov requested help retrieving the SGEMP Prototype 21255 | -5/Zhirov | Found Alien Artifact 21263 | -5/Zhirov | Found Alien Artifact 21263 | -5/Zhirov | Identified Integrated Reactor 21263 | -5/Zhirov | Installed Integrated Reactor, increased core energy generation (+10) 21354 | -5/Zhirov | Entered Proximity Caves 21364 | -4/Proximity Caves | Spotter reported a threat 21497 | -4/Proximity Caves | Spotter reported a threat 21576 | -4/Proximity Caves | Learned Research terminal intel 21601 | -4/Proximity Caves | Learned Research stockpile data 21685 | -4/Proximity Caves | Spotted B-86 Titan 21809 | -4/Proximity Caves | Spotter reported a threat 21897 | -4/Proximity Caves | Discovered exit to Factory (range 8) 21902 | -4/Proximity Caves | Entered Factory 21902 | -4/Factory | Evolved 2 slots: Utility x2 21903 | -4/Factory | Identified exit to Extension 21903 | -4/Factory | Identified exit to Armory 21904 | -4/Factory | Loaded intel: 101 trap records 21906 | -4/Factory | Loaded intel: 4 garrison access locations 21907 | -4/Factory | Identified exit to Upper Caves 22003 | -4/Factory | Spotted B-86 Titan 22152 | -4/Factory | Search patrols dispatched 22289 | -4/Factory | Lost 3 parts (1p1n1w) 22395 | -4/Factory | Incoming investigation squad redirected 22402 | -4/Factory | Fabricated Hvy. Mass Driver (x1) 22652 | -4/Factory | Search patrols dispatched 22692 | -4/Factory | Fabricated Lgt. Quantum Reactor? 22865 | -4/Factory | Identified Transdimensional Reconstructor 22865 | -4/Factory | Warped through subspace 22882 | -4/Factory | Repaired Imp. Kinecellerator? 22989 | -4/Factory | Repaired Imp. Reaction Control System 23049 | -4/Factory | Repaired Hvy. Mass Driver 23107 | -4/Factory | Repaired Cmb. Gravmag System 23372 | -4/Factory | Destroyed 8 combat bots 23729 | -4/Factory | Lost 3 parts (1p1n1u) 23731 | -4/Factory | Destroyed 8 combat bots 23745 | -4/Factory | Repaired Hvy. Mass Driver? 23816 | -4/Factory | Entered Upper Caves 23836 | -4/Upper Caves | Spotted B-86 Titan 24018 | -4/Upper Caves | Identified exit to Upper Caves 24067 | -4/Upper Caves | Learned Research garrison access intel 24101 | -4/Upper Caves | Entered another Upper Caves area 24104 | -4/Upper Caves | Discovered new exit (range 7) 24231 | -4/Upper Caves | Learned Research garrison access intel 24394 | -4/Upper Caves | Build established: Hacker-Scout 24552 | -4/Upper Caves | Spotted B-86 Titan 24611 | -4/Upper Caves | Discovered new exit (range 9) 24629 | -4/Upper Caves | Encountered a Warlord checkpoint 24632 | -4/Upper Caves | Learned 8 Research zone layouts 24781 | -4/Upper Caves | Identified exit to Warlord 24781 | -4/Upper Caves | Entered Warlord 24825 | -4/Warlord | Discovered new exit (range 8) 25029 | -4/Warlord | Opened Warlord's prototype stash 25031 | -4/Warlord | Found Prototype Device 25031 | -4/Warlord | Identified System Purifier 25034 | -4/Warlord | Found Prototype Processor 25034 | -4/Warlord | Identified Exp. Armor Integrity Analyzer 25039 | -4/Warlord | Found Prototype Hackware 25039 | -4/Warlord | Identified Ghost Barrier 25052 | -4/Warlord | Found Prototype Reactor 25056 | -4/Warlord | Found Prototype Device 25056 | -4/Warlord | Identified Exp. Cloaking Device 25095 | -4/Warlord | Met Warlord 25100 | -4/Warlord | Warlord's base attacked by MAIN.C 25325 | -4/Warlord | Build established: Wizard-Mutant 25355 | -4/Warlord | Lost 7 allies 25450 | -4/Warlord | Warlord forces counterattacked 25483 | -4/Warlord | Spotted Executioner 25498 | -4/Warlord | Spotted Executioner 25528 | -4/Warlord | Spotted Striker 25554 | -4/Warlord | Found Prototype Ballistic Cannon 25554 | -4/Warlord | Identified Hvy. Autocannon 25576 | -4/Warlord | Found Hvy. Autocannon 25587 | -4/Warlord | Destroyed 7 combat bots 25587 | -4/Warlord | Lost 27 allies 25775 | -4/Warlord | Warlord base infiltrated, sounded retreat 25776 | -4/Warlord | Enhanced Grunt warped into view 25776 | -4/Warlord | Enhanced Grunt warped into view 25776 | -4/Warlord | Enhanced Grunt warped into view 25776 | -4/Warlord | Enhanced Demolisher warped into view 25776 | -4/Warlord | Enhanced Demolisher warped into view 25776 | -4/Warlord | Enhanced Demolisher warped into view 25824 | -4/Warlord | Spotted Executioner 25830 | -4/Warlord | Destroyed Executioner 25831 | -4/Warlord | Core integrity fell below 50% 25835 | -4/Warlord | Spotted B-90 Cyclops 25854 | -4/Warlord | Spotted Striker 25860 | -4/Warlord | Spotted Striker 25861 | -4/Warlord | Destroyed B-90 Cyclops 25863 | -4/Warlord | Destroyed Striker 25878 | -4/Warlord | Spotted Executioner 25896 | -4/Warlord | Spotted Executioner 25907 | -4/Warlord | Lost 8 allies 25909 | -4/Warlord | Found Corrupted Hvy. Autocannon 25921 | -4/Warlord | Spotted Striker 25923 | -4/Warlord | Spotted Striker 25925 | -4/Warlord | Destroyed XN-BUL(K) 25974 | -4/Warlord | Lost 14 allies 25999 | -4/Warlord | Identified exit to Proximity Caves 26001 | -4/Warlord | Entered Proximity Caves 26291 | -3/Proximity Caves | Build established: Wizard-Scout 26439 | -3/Proximity Caves | Discovered new exit (range 15) 26576 | -3/Proximity Caves | Identified exit to Research 26577 | -3/Proximity Caves | Entered Research 26577 | -3/Research | Evolved 2 slots: Power x1, Propulsion x1 26578 | -3/Research | Identified exit to Quarantine 26579 | -3/Research | Identified Vortex Chain Reactor 26580 | -3/Research | Loaded intel: 23 terminal locations 26581 | -3/Research | Loaded intel: 4 garrison access locations 26612 | -3/Research | Found Prototype Device 26612 | -3/Research | Identified Exp. EM Disruption Field 26753 | -3/Research | Discovered new exit (range 14) 26801 | -3/Research | Spotted B-86 Titan 27019 | -3/Research | Found Prototype Device 27019 | -3/Research | Identified Adv. Kinecellerator 27035 | -3/Research | Found Prototype Launcher 27035 | -3/Research | Identified Tactical Quantum Warhead 27116 | -3/Research | Build established: Wizard-Ninja 27228 | -3/Research | Found Fusion Bomb Launcher 27369 | -3/Research | Spotted B-86 Titan 27423 | -3/Research | Found Prototype Processor 27423 | -3/Research | Identified Exp. Targeting Computer 27622 | -3/Research | Discovered new exit (range 13) 27680 | -3/Research | Spotted B-86 Titan 27744 | -3/Research | Build established: Hacker-Scout 27768 | -3/Research | Loaded intel: 61 trap records 27898 | -3/Research | Identified exit to Research 27949 | -3/Research | Learned Testing security intel 27989 | -3/Research | Learned Research stockpile data 28020 | -3/Research | Learned Access trap positions 28110 | -3/Research | Learned location of 1 exit from Armory 28146 | -3/Research | Spotted B-90 Cyclops 28159 | -3/Research | Entered Quarantine 28401 | -3/Quarantine | Discovered exit to Research (range 14) 28435 | -3/Quarantine | Found Alien Artifact 28435 | -3/Quarantine | Identified Subatomic Replicator 29036 | -3/Quarantine | System corruption reached 10% 29197 | -3/Quarantine | Found Alien Artifact 29197 | -3/Quarantine | Identified Phase Armor 29343 | -3/Quarantine | Build established: Hacker-Mutant 29407 | -3/Quarantine | Spotted Fortress 29443 | -3/Quarantine | Core integrity fell below 50% 29444 | -3/Quarantine | Lost 6 parts (1p2n2u1w) 29461 | -3/Quarantine | Discovered new exit (range 6) 29461 | -3/Quarantine | Discovered new exit (range 7) 29464 | -3/Quarantine | Identified exit to Section 7 29466 | -3/Quarantine | Identified exit to Protoforge 29467 | -3/Quarantine | Entered Protoforge 29488 | -3/Protoforge | Spotted Hotshot 29488 | -3/Protoforge | Spotted Hotshot 29488 | -3/Protoforge | Spotted Hotshot 29488 | -3/Protoforge | Spotted Hotshot 29488 | -3/Protoforge | Spotted Hotshot 29489 | -3/Protoforge | Superfortress began startup sequence 29598 | -3/Protoforge | Core integrity fell below 20% 29620 | -3/Protoforge | Destroyed by S-43 Plague with Heavy Machine Gun Last Messages --------------- 29539_ K-01 Serf destroyed. 29542_ Acquired 21 matter. 29550_ U-05 Engineer builds a Door. 29563_ Door malfunctions. 29570_ Adv. Signal Interpreter destroyed. 29578_ System corrupted: Matter fused (-9). 29584_ Adv. ECM Suite destroyed. 29586_ Slammed into P-80 Master. 29587_ Cmb. Antigrav System destroyed. 29591_ Microcatalyzer disabled. 29591_ Penetrated by Slug. 29592_ Slammed into Y-72 Warden. 29594_ Penetrated by Slug. 29594_ Cmb. Antigrav System destroyed. 29594_ Penetrated by Slug. 29594_ Slug penetrates Wall. 29595_ System corrupted: Matter fused (-10). 29597_ Exp. Cloaking Device destroyed. 29597_ Penetrated by Slug. 29597_ Slug penetrates Wall. Map ----- +----------------------------------------------------+ | ?????????????????????????????????????????????????? | | ?????????????????????????????????????????????????? | | ?????????????????????????????????????????????????? | | ?????????????????????????????????????????????????? | | ?????????????????????????????????????????????????? | | ??????????????????????????#??????????????????????? | | ???????????????????????? ? ??????????????????????? | | ??????????????????????? T" ??????????????????????? | | ??????????????????????? " ??????????????????????? | | ??????????????????????? ?H????????????????????? | | ??????????????????????? ??????????????????????? | | ???????????????????????# ??????????????????????? | | ???????????????????????? u??????????????????????? | | ???????????????????????? ??????????????????????? | | ???????????????????????? ??????????????????????? | | ???????????????????????? ??????????????????????? | | ???????????????????????? ??????????????????????? | | ???????????????????????? k ??????????????????????? | | ????????????????????????# #??????????????????????? | | ????????????????????????# #??????????????????????? | | ????????????????????????# #??????????????????????? | | ????????????????????????#w#??????????????????????? | | ????????????????????????# #??????????????????????? | | ????????????????????????# ###??########?##???????? | | ????????????????????????# +?? #???????? | | ????????????????????????#@ #?""" """ #???????? | | ????????????????######### #? #???????? | | ????????????????# # """ """ #???????? | | ????????????????# # #???????? | | ????????????????# s + """ """ ???????????? | | ????????????????# ss # #???????? | | ??????????####??# ######## """ """ #???????? | | ??????????# ??# # #?? #???????? | | ??????????# " "?# # """ #??""" """ #???????? | | ??????????# " "?# # "T" #??? #???????? | | ??????????# " " # # " " #??? #???????? | | ??????????# # # ?????# ######?????????? | | ??????????# + # ??????##??????????????? | | ??????????# "" # #? ???????????????????????? | | ??????????# """ # #? ???????????????????????? | | ??????????# T"?# ###+###########?????????????? | | ??????????# """?# +?????????????? | | ??????????# ""??# #?????????????? | | ??????????# ??# +?????????????? | | ??????????###???# #?????????????? | | ????????????????# ###+###### #?????????????? | | ????????????????# #????????# #?????????????? | | ???????####?????# #????????+ #?????????????? | | ???????? ???? #????????### #?????????????? | | ???????? ?? #??????????# #?????????????? | +----------------------------------------------------+ Best States ------------- Heat Dissipation 65 Energy Generation 65 Energy Capacity 900 Matter Stores 300 Matter Capacity 300 Sight Range 22 Robot Scan Range 16 Terrain Scan Density 10 ECM Strength 2 Cloak Strength 4 Armor Coverage 300 Resistance: EM 25 Propulsion Shielding 66 Weapon Shielding 66 Evasion (%) 66 Targeting Accuracy 20 Core Analysis 6 Armor Integrity Analysis 50 Recoil Reduction 5 Kinecelleration 50 Offensive Hacking 28 Defensive Hacking 48 Item Schematics ----------------- Med. Storage Unit | -10/Materials | Hacked Airjet | -8/Materials | Hacked Gravmag System | -7/Factory | Scanalyzed Imp. Trap Extractor | -7/Zion | Archive Adv. Melee Analysis Suite | -7/Zion | Archive Coolant Injector | -7/Zion | Archive Falx | -7/Zion | Archive Adv. Terrain Scan Processor | -7/Zion | Archive Hvy. Flak Cannon | -7/Zion | Archive Imp. Deuterium Engine | -7/Zion | Archive Field Propulsion Drive | -7/Zion | Archive Imp. Shock Absorption System | -7/Zion | Archive Adv. Assault Cannon | -7/Zion | Archive Thermic Laser | -7/Zion | Archive Matter Compressor | -7/Zion | Archive Imp. Shield Generator | -7/Zion | Archive Imp. EM Pulse Cannon | -7/Zion | Archive Force Field | -7/Zion | Archive Gravmag Array | -6/Factory | Scanalyzed Hvy. Assault Cannon | -6/Factory | Scanalyzed Combat Drone Bay | -6/Data Miner | Free Lgt. Regenerative Plating | -6/Data Miner | Free Cld. Nuclear Pulse Thruster | -6/Data Miner | Free Imp. Energy Well | -6/Data Miner | Free Hvy. Proton Cannon | -6/Data Miner | Free Hvy. Siege Treads | -6/Data Miner | Free Adv. Actuator Array | -6/Data Miner | Free Hardcell Cannon | -6/Data Miner | Free Hyp. Coil Gun | -6/Data Miner | Free Hvy. Mass Driver | -5/Factory | Hacked Cmb. Antigrav System | -5/Factory | Scanalyzed Antigrav Array | -5/Factory | Scanalyzed Assault Drone Bay | -5/Zhirov | Free Exp. Heat Sink | -5/Zhirov | Free Exp. Optical Array | -5/Zhirov | Free Imp. Arc Thrower | -5/Zhirov | Free Hyp. Railgun | -4/Factory | Hacked Exp. Targeting Computer | -3/Research | Hacked Robot Schematics ------------------ G-47 Trooper | -7/Zion | Archive M-14 Sweeper | -7/Zion | Archive L-41 Fighter | -7/Zion | Archive H-88 Terminator | -7/Zion | Archive B-48 Gladiator | -6/Data Miner | Free B-60 Warrior | -6/Data Miner | Free Fabricated ------------ Gravmag System | x2 | -7/Factory Hvy. Assault Cannon | x1 | -6/Factory Hvy. Mass Driver | x1 | -5/Factory Hvy. Mass Driver | x1 | -4/Factory Lgt. Quantum Reactor | x2 | -4/Factory | Preloaded Repaired ---------- Hrd. Light Armor Plating | 65% | -9/Storage Imp. Light Cannon | 65% | -9/Storage Hvy. Assault Cannon | 58% | -7/Factory Hrd. Light Armor Plating | 55% | -7/Factory Cld. Ion Engine | 40% | -7/Factory Airjet | 52% | -7/Factory Airjet | 65% | -7/Factory Imp. Medium Armor Plating | 13% | -6/Factory Imp. Propulsion Shielding | 16% | -6/Factory Hvy. Assault Cannon | 69% | -6/Factory Imp. Kinecellerator | 10% | -4/Factory Imp. Reaction Control System | 12% | -4/Factory Hvy. Mass Driver | 56% | -4/Factory Cmb. Gravmag System | 35% | -4/Factory Hvy. Mass Driver | 7% | -4/Factory Alien Tech Used ----------------- Integrated Reactor Transdimensional Reconstructor Subatomic Replicator Phase Armor Achievements -------------- Nope Challenges ------------ None Game ------ Seed ConstructRocketLauncher Manual? 0 Play Time 05:54:18 Cumulative 299.5 hours Start 2025.06.21 @ 17:49:33 End 2025.06.24 @ 21:29:46 Sessions 5 Manual Loads 0 Difficulty Rogue Special Mode None Game No. 186 Rogue 186 Adventurer 0 Explorer 0 Win Type - Total 2 Types 1/0/0/1/0/0/0/0/0/0 Lore% 81 Gallery% 65 Achievement% 63 Wizard Run 0 Options --------- Layout 0 ASCII 0 Keyboard 0 Movement Mouse Keybinds 0 Fullscreen 1 Font 18/SmallcapsGlow Map View 76x50 Zoom Use 0% Tactical HUD 1 Map Filters NONE Filters NONE Steam 1 RUN: f906b881-a79f-4d43-87c5-b87455eb8d29